Department family,Entity,Date,Expense type,Expense area,Supplier,Transaction number,Amount,Description
MOJ,LAA,06/10/21,Legal Aid Legal Help,LEGAL AID FUND,WOOLFE & CO SOLICITORS LTD,2260042:158759195,"32,197.68",Legal Aid Legal Help
MOJ,LAA,06/10/21,Legal Aid Higher Crime,LEGAL AID FUND,CARSON KAYE SOLICITORS,2260048:158754035,"32,542.92",Legal Aid Higher Crime
MOJ,LAA,06/10/21,Legal Aid Higher Crime,LEGAL AID FUND,CARSON KAYE SOLICITORS,2260048:158754422,"68,279.14",Legal Aid Higher Crime
MOJ,LAA,06/10/21,Legal Aid Higher Crime,LEGAL AID FUND,OSBORN KNIGHT LTD,2260049:158715899,"34,311.85",Legal Aid Higher Crime
MOJ,LAA,06/10/21,Legal Aid Higher Crime,LEGAL AID FUND,APPLEBY SHAW LTD,2260062:158724572,"67,726.70",Legal Aid Higher Crime
MOJ,LAA,06/10/21,Legal Aid Higher Crime,LEGAL AID FUND,SOLOMONS SOLICITORS,2260100:158725046,"67,726.70",Legal Aid Higher Crime
MOJ,LAA,06/10/21,Legal Aid Civil Representation,LEGAL AID FUND,FLG LTD,2260178:3000008381310007,"25,225.43",Legal Aid Civil Representation
MOJ,LAA,06/10/21,Legal Aid Civil Representation,LEGAL AID FUND,REX A HOWLING QC,2260225:3000007757110021,"36,486.00",Legal Aid Civil Representation
MOJ,LAA,06/10/21,Legal Aid Higher Crime,LEGAL AID FUND,ELIZABETH C LAMBERT,2260324:158754401,"27,450.00",Legal Aid Higher Crime
MOJ,LAA,06/10/21,Legal Aid Civil Representation,LEGAL AID FUND,BRYAN R COX QC,2260334:3000006734310008,"35,925.12",Legal Aid Civil Representation
MOJ,LAA,06/10/21,Legal Aid Civil Representation,LEGAL AID FUND,CLAIRE L M WILLS-GOLDINGHAM,2260343:3000004271520035,"57,853.80",Legal Aid Civil Representation
MOJ,LAA,06/10/21,Legal Aid Civil Representation,LEGAL AID FUND,ADAM GORDON CLEGG,2260351:3000006225330021,"30,569.28",Legal Aid Civil Representation
MOJ,LAA,06/10/21,Legal Aid Higher Crime,LEGAL AID FUND,STEPHEN J LINEHAN QC,2260389:158716677,"32,628.00",Legal Aid Higher Crime
MOJ,LAA,06/10/21,Legal Aid Higher Crime,LEGAL AID FUND,CHRISTOPHER J QUINLAN,2260447:158724900,"28,452.00",Legal Aid Higher Crime
MOJ,LAA,06/10/21,Legal Aid Higher Crime,LEGAL AID FUND,JABEEN AKHTAR,2260508:158754068,"45,828.00",Legal Aid Higher Crime
MOJ,LAA,06/10/21,Legal Aid Civil Representation,LEGAL AID FUND,MARK J TWOMEY QC,2260564:3000007727020012,"33,175.68",Legal Aid Civil Representation
MOJ,LAA,06/10/21,Legal Aid Higher Crime,LEGAL AID FUND,CHARLES I SHERRARD,2260574:158716901,"71,604.00",Legal Aid Higher Crime
MOJ,LAA,06/10/21,Legal Aid Higher Crime,LEGAL AID FUND,FRIDA K HUSSAIN,2260575:158754347,"84,084.00",Legal Aid Higher Crime
MOJ,LAA,06/10/21,Legal Aid Higher Crime,LEGAL AID FUND,DANIEL JANNER QC,2260589:158732145,"68,820.00",Legal Aid Higher Crime
MOJ,LAA,06/10/21,Legal Aid Civil Representation,LEGAL AID FUND,LIANNE C MURPHY,2260616:3000005516300016,"34,134.48",Legal Aid Civil Representation
MOJ,LAA,06/10/21,Legal Aid Civil Representation,LEGAL AID FUND,STEPHEN J THORNTON,2260634:3000005908240027,"52,576.74",Legal Aid Civil Representation
MOJ,LAA,06/10/21,Legal Aid Civil Representation,LEGAL AID FUND,SAMANTHA J BOWCOCK,2260659:3000006024020027,"35,121.60",Legal Aid Civil Representation
MOJ,LAA,06/10/21,Legal Aid Civil Representation,LEGAL AID FUND,JOHN C ELVIDGE QC,2260681:3000005908240023,"31,557.60",Legal Aid Civil Representation
MOJ,LAA,06/10/21,Legal Aid Higher Crime,LEGAL AID FUND,ANDREW SELBY,2260683:158754934,"46,548.00",Legal Aid Higher Crime
MOJ,LAA,06/10/21,Legal Aid Civil Representation,LEGAL AID FUND,MAKIN DIXON SOLICITORS LTD,2260710:3000007181000009,"30,857.66",Legal Aid Civil Representation
MOJ,LAA,06/10/21,Legal Aid Higher Crime,LEGAL AID FUND,LEVY & CO SOLICITORS LLP,2260711:158732590,"107,574.07",Legal Aid Higher Crime
MOJ,LAA,06/10/21,Legal Aid Higher Crime,LEGAL AID FUND,HENNESSY & HAMMUDI,2260718:158715698,"55,439.29",Legal Aid Higher Crime
MOJ,LAA,06/10/21,Legal Aid Higher Crime,LEGAL AID FUND,ZMS LEGAL LTD TA ZMS SOLICITORS,2260726:158707544,"64,141.67",Legal Aid Higher Crime
MOJ,LAA,06/10/21,Legal Aid Higher Crime,LEGAL AID FUND,LLOYDS PR SOLICITORS,2260728:158715618,"100,431.69",Legal Aid Higher Crime
MOJ,LAA,06/10/21,Legal Aid Higher Crime,LEGAL AID FUND,LLOYDS PR SOLICITORS,2260728:158754984,"59,674.88",Legal Aid Higher Crime
MOJ,LAA,06/10/21,Legal Aid Higher Crime,LEGAL AID FUND,GRACELAND SOLICITORS,2260730:158754463,"60,310.56",Legal Aid Higher Crime
MOJ,LAA,06/10/21,Legal Aid Higher Crime,LEGAL AID FUND,LIBERTY SOLICITORS.,2260753:158753914,"32,806.80",Legal Aid Higher Crime
MOJ,LAA,06/10/21,Legal Aid Higher Crime,LEGAL AID FUND,MANN & CO SOLICITORS LTD,2260797:158707883,"46,440.85",Legal Aid Higher Crime
MOJ,LAA,06/10/21,Legal Aid Higher Crime,LEGAL AID FUND,TAYLOR HALDANE BARLEX LLP,2260802:158716524,"86,551.96",Legal Aid Higher Crime
MOJ,LAA,06/10/21,Legal Aid Higher Crime,LEGAL AID FUND,SHAW GRAHAM KERSH,2260804:158707836,"89,975.11",Legal Aid Higher Crime
MOJ,LAA,06/10/21,Legal Aid Higher Crime,LEGAL AID FUND,AMOSU ROBINSHAW LTD,2260826:158754876,"78,404.76",Legal Aid Higher Crime
MOJ,LAA,06/10/21,Legal Aid Civil Representation,LEGAL AID FUND,RASHID & CO SOLICITORS LTD,2260837:3000005318390045,"30,989.42",Legal Aid Civil Representation
MOJ,LAA,06/10/21,Legal Aid Higher Crime,LEGAL AID FUND,ST JAMES SOLICITORS,2260849:158724977,"85,412.29",Legal Aid Higher Crime
MOJ,LAA,06/10/21,Legal Aid Higher Crime,LEGAL AID FUND,MELVILLE BARROW LTD,2260862:158732447,"70,272.77",Legal Aid Higher Crime
MOJ,LAA,06/10/21,Legal Aid Higher Crime,LEGAL AID FUND,DPP LAW LTD,2260865:158732858,"89,975.11",Legal Aid Higher Crime
MOJ,LAA,06/10/21,Legal Aid Civil Representation,LEGAL AID FUND,TALLENTS SOLICITORS,2260919:3000006740210004,"28,523.52",Legal Aid Civil Representation
MOJ,LAA,06/10/21,Legal Aid Civil Representation,LEGAL AID FUND,TOZERS LLP,2260920:3000005980550012,"48,584.10",Legal Aid Civil Representation
MOJ,LAA,06/10/21,Legal Aid Civil Representation,LEGAL AID FUND,BATTRICK CLARK SOLICITORS LIMITED,2260932:3000006259360012,"47,727.66",Legal Aid Civil Representation
MOJ,LAA,06/10/21,Legal Aid Civil Representation,LEGAL AID FUND,R P ROBINSON,2260935:3000006015440019,"31,673.00",Legal Aid Civil Representation
MOJ,LAA,06/10/21,Legal Aid Civil Representation,LEGAL AID FUND,TIMMS SOLICITORS,2260947:3000006886610015,"29,333.39",Legal Aid Civil Representation
MOJ,LAA,06/10/21,Legal Aid Civil Representation,LEGAL AID FUND,BHATIA BEST LTD,2260955:3000005044130015,"29,470.65",Legal Aid Civil Representation
MOJ,LAA,06/10/21,Legal Aid Civil Representation,LEGAL AID FUND,ELLIOT MATHER LLP,2260958:3000004429520024,"36,606.15",Legal Aid Civil Representation
MOJ,LAA,06/10/21,Legal Aid Higher Crime,LEGAL AID FUND,JOSEPH HILL & CO,2260975:158707408,"89,138.80",Legal Aid Higher Crime
MOJ,LAA,06/10/21,Legal Aid Civil Representation,LEGAL AID FUND,LOCKINGS SOLICITORS,2260977:3000006293800015,"27,427.46",Legal Aid Civil Representation
MOJ,LAA,06/10/21,Legal Aid Civil Representation,LEGAL AID FUND,CASWELL JONES SOLICITORS,2261007:3000006840430013,"33,891.29",Legal Aid Civil Representation
MOJ,LAA,06/10/21,Legal Aid Civil Representation,LEGAL AID FUND,THURSFIELDS CHILD CARE LLP,2261015:3000007785000004,"25,523.57",Legal Aid Civil Representation
MOJ,LAA,06/10/21,Legal Aid Higher Crime,LEGAL AID FUND,DENBY & CO SOLICITOR LTD,2261026:158724982,"26,709.22",Legal Aid Higher Crime
MOJ,LAA,06/10/21,Legal Aid Civil Representation,LEGAL AID FUND,H E THOMAS & CO,2261080:3000007021890003,"25,385.14",Legal Aid Civil Representation
MOJ,LAA,06/10/21,Legal Aid Civil Representation,LEGAL AID FUND,BOYS & MAUGHAN,2261101:3000006128900016,"48,796.71",Legal Aid Civil Representation
MOJ,LAA,06/10/21,Legal Aid Civil Representation,LEGAL AID FUND,BOYS & MAUGHAN,2261101:3000006225330022,"37,851.29",Legal Aid Civil Representation
MOJ,LAA,06/10/21,Legal Aid Civil Representation,LEGAL AID FUND,CLARE M BATE,2261187:3000004631150017,"25,660.80",Legal Aid Civil Representation
MOJ,LAA,06/10/21,Legal Aid Civil Representation,LEGAL AID FUND,MIRIAM V BEST,2261240:3000004638960075,"37,023.92",Legal Aid Civil Representation
MOJ,LAA,06/10/21,Legal Aid Higher Crime,LEGAL AID FUND,HCB BERRY & BERRY LTD,2261352:158725288,"30,456.80",Legal Aid Higher Crime
MOJ,LAA,06/10/21,Legal Aid Higher Crime,LEGAL AID FUND,KINGSMAN SOLICITORS LTD,2261398:158754635,"46,440.85",Legal Aid Higher Crime
MOJ,LAA,06/10/21,Legal Aid Civil Representation,LEGAL AID FUND,A & N CARE SOLICITORS,2261525:3000006737130009,"33,579.53",Legal Aid Civil Representation
MOJ,LAA,06/10/21,Legal Aid Civil Representation,LEGAL AID FUND,PAUL CROWLEY & CO SOLICITORS LTD,2261527:3000005716280012,"38,171.76",Legal Aid Civil Representation
MOJ,LAA,06/10/21,Legal Aid Higher Crime,LEGAL AID FUND,LEFI TSIATTALOU,2261568:158749191,"46,080.00",Legal Aid Higher Crime
MOJ,LAA,06/10/21,Legal Aid Civil Representation,LEGAL AID FUND,SAM MOMTAZ,2261572:3000008403920002,"44,031.60",Legal Aid Civil Representation
MOJ,LAA,06/10/21,Legal Aid Higher Crime,LEGAL AID FUND,EDWARD J A HENRY,2261575:158715685,"52,116.00",Legal Aid Higher Crime
MOJ,LAA,06/10/21,Legal Aid Civil Representation,LEGAL AID FUND,HENRY LAMB,2261583:3000006270550015,"31,997.19",Legal Aid Civil Representation
MOJ,LAA,06/10/21,Legal Aid Higher Crime,LEGAL AID FUND,SHAFI SOLICITORS LLP,2261590:158715593,"89,062.21",Legal Aid Higher Crime
MOJ,LAA,06/10/21,Legal Aid Higher Crime,LEGAL AID FUND,MOHAMMAD M HOSSAIN,2261715:158753761,"54,900.00",Legal Aid Higher Crime
MOJ,LAA,06/10/21,Legal Aid Higher Crime,LEGAL AID FUND,TERENCE M WOODS,2261718:158754664,"25,812.00",Legal Aid Higher Crime
MOJ,LAA,06/10/21,Legal Aid Higher Crime,LEGAL AID FUND,ADAM V S KANE QC,2261789:158708322,"45,156.00",Legal Aid Higher Crime
MOJ,LAA,06/10/21,Legal Aid Civil Representation,LEGAL AID FUND,FRANCES M HEATON,2261808:3000005543700021,"32,691.60",Legal Aid Civil Representation
MOJ,LAA,06/10/21,Legal Aid Civil Representation,LEGAL AID FUND,DAMIAN WOODWARD-CARLTON,2261828:3000004798080043,"27,572.40",Legal Aid Civil Representation
MOJ,LAA,06/10/21,Legal Aid Higher Crime,LEGAL AID FUND,ALLISON SUMMERS,2261831:158754853,"32,628.00",Legal Aid Higher Crime
MOJ,LAA,06/10/21,Legal Aid Higher Crime,LEGAL AID FUND,J D SPICER ZEB,2261989:158725404,"67,726.70",Legal Aid Higher Crime
MOJ,LAA,06/10/21,Legal Aid Higher Crime,LEGAL AID FUND,STEWART BEGUM SOLICITORS LTD,2262012:158725511,"29,494.40",Legal Aid Higher Crime
MOJ,LAA,06/10/21,Legal Aid Higher Crime,LEGAL AID FUND,CHIVERS SOLICITORS INC HOWCROFT SOLICITORS,2262014:158715945,"71,976.19",Legal Aid Higher Crime
MOJ,LAA,06/10/21,Legal Aid Higher Crime,LEGAL AID FUND,HURRAIRAH HARRIS SOLICITORS,2262017:158715387,"89,975.11",Legal Aid Higher Crime
MOJ,LAA,06/10/21,Legal Aid Civil Representation,LEGAL AID FUND,DUNCAN LEWIS SOLICITORS  LTD,2262022:3000005936670009,"29,968.55",Legal Aid Civil Representation
MOJ,LAA,06/10/21,Legal Aid Civil Representation,LEGAL AID FUND,MOORE BARLOW LLP,2262027:158712009,"72,533.69",Legal Aid Civil Representation
MOJ,LAA,06/10/21,Legal Aid Civil Representation,LEGAL AID FUND,JUDI EVANS,2262042:3000005421520018,"34,550.74",Legal Aid Civil Representation
MOJ,LAA,06/10/21,Legal Aid Higher Crime,LEGAL AID FUND,HEDLEY SOLICITORS,2262053:158732823,"26,464.44",Legal Aid Higher Crime
MOJ,LAA,06/10/21,Legal Aid Higher Crime,LEGAL AID FUND,NEWGATE SOLICITORS,2262068:158715777,"26,820.30",Legal Aid Higher Crime
MOJ,LAA,06/10/21,Legal Aid Higher Crime,LEGAL AID FUND,BOWDEN JONES LTD ABS,2262077:158753773,"60,310.56",Legal Aid Higher Crime
MOJ,LAA,06/10/21,Legal Aid Civil Representation,LEGAL AID FUND,NICKY GOODMAN & CO LTD,2262101:3000005908240028,"47,238.77",Legal Aid Civil Representation
MOJ,LAA,06/10/21,Legal Aid Civil Representation,LEGAL AID FUND,WMC LEGAL LLP,2262123:3000006361870034,"30,743.59",Legal Aid Civil Representation
MOJ,LAA,06/10/21,Legal Aid Higher Crime,LEGAL AID FUND,ALBIN & CO LTD,2262136:158707122,"26,476.79",Legal Aid Higher Crime
MOJ,LAA,06/10/21,Legal Aid Higher Crime,LEGAL AID FUND,JON MAIL SOLICITORS & CO LTD,2262141:158715993,"83,361.86",Legal Aid Higher Crime
MOJ,LAA,06/10/21,Legal Aid Civil Representation,LEGAL AID FUND,JACKSON QUINN,2262154:3000004662820025,"30,956.31",Legal Aid Civil Representation
MOJ,LAA,06/10/21,Legal Aid Higher Crime,LEGAL AID FUND,HUSSAIN SOLICITORS LTD,2262166:158724805,"99,246.90",Legal Aid Higher Crime
MOJ,LAA,06/10/21,Legal Aid Civil Representation,LEGAL AID FUND,BRR LAW,2262173:3000006263730011,"41,466.74",Legal Aid Civil Representation
MOJ,LAA,06/10/21,Legal Aid Civil Representation,LEGAL AID FUND,BORNEO MARTELL TURNER COULSTON LLP,2262179:3000004574440029,"32,137.36",Legal Aid Civil Representation
MOJ,LAA,06/10/21,Legal Aid Higher Crime,LEGAL AID FUND,ALAN HARRIS SOLICITORS,2262203:158754158,"26,102.36",Legal Aid Higher Crime
MOJ,LAA,06/10/21,Legal Aid Civil Representation,LEGAL AID FUND,BANNER JONES LTD,2262212:3000006651310012,"34,641.05",Legal Aid Civil Representation
MOJ,LAA,06/10/21,Legal Aid Civil Representation,LEGAL AID FUND,BATES & MOUNTAIN,2262262:3000005311260039,"35,647.86",Legal Aid Civil Representation
MOJ,LAA,06/10/21,Legal Aid Higher Crime,LEGAL AID FUND,THE JOHNSON PARTNERSHIP,2262265:158715973,"27,729.06",Legal Aid Higher Crime
MOJ,LAA,06/10/21,Legal Aid Civil Representation,LEGAL AID FUND,STEPHENSONS SOLICITORS LLP,2262291:3000005704400029,"26,575.76",Legal Aid Civil Representation
MOJ,LAA,06/10/21,Legal Aid Higher Crime,LEGAL AID FUND,STEPHENSONS SOLICITORS LLP,2262294:158707702,"29,664.55",Legal Aid Higher Crime
MOJ,LAA,06/10/21,Legal Aid Civil Representation,LEGAL AID FUND,T V EDWARDS LLP,2262311:3000004790250034,"32,711.30",Legal Aid Civil Representation
MOJ,LAA,06/10/21,Legal Aid Higher Crime,LEGAL AID FUND,STUART MILLER SOLICITORS LTD,2262326:158708013,"31,819.74",Legal Aid Higher Crime
MOJ,LAA,06/10/21,Legal Aid Higher Crime,LEGAL AID FUND,STUART MILLER SOLICITORS LTD,2262326:158708162,"29,115.84",Legal Aid Higher Crime
MOJ,LAA,06/10/21,Legal Aid Higher Crime,LEGAL AID FUND,BARK & CO,2262330:158759440,"61,308.65",Legal Aid Higher Crime
MOJ,LAA,06/10/21,Legal Aid Higher Crime,LEGAL AID FUND,JANES SOLICITORS,2262358:158724661,"54,356.50",Legal Aid Higher Crime
MOJ,LAA,06/10/21,Legal Aid Higher Crime,LEGAL AID FUND,BLACKFORDS LLP,2262361:158725377,"57,581.34",Legal Aid Higher Crime
MOJ,LAA,06/10/21,Legal Aid Civil Representation,LEGAL AID FUND,CLIFTON INGRAM LLP INC RDG,2262370:158728182,"31,061.57",Legal Aid Civil Representation
MOJ,LAA,06/10/21,Legal Aid Civil Representation,LEGAL AID FUND,EDWARDS DUTHIE SHAMASH SOLICITORS,2262414:3000004798080044,"35,286.33",Legal Aid Civil Representation
MOJ,LAA,06/10/21,Legal Aid Civil Representation,LEGAL AID FUND,CROSSE & CROSSE SOLICITORS LLP,2262429:3000005674510025,"48,819.11",Legal Aid Civil Representation
MOJ,LAA,06/10/21,Legal Aid Higher Crime,LEGAL AID FUND,RENSHAW DERRICK & CO,2262432:158716462,"38,567.04",Legal Aid Higher Crime
MOJ,LAA,06/10/21,Legal Aid Civil Representation,LEGAL AID FUND,FLG LTD,2262471:3000004724630015,"35,979.11",Legal Aid Civil Representation
MOJ,LAA,06/10/21,Legal Aid Civil Representation,LEGAL AID FUND,BEU SOLICITORS,2262569:3000006520700002,"28,752.12",Legal Aid Civil Representation
MOJ,LAA,06/10/21,Legal Aid Civil Representation,LEGAL AID FUND,BENSON LEGAL SERVICES LTD,2262611:3000007759150007,"28,487.86",Legal Aid Civil Representation
MOJ,LAA,06/10/21,Legal Aid Higher Crime,LEGAL AID FUND,KNIGHTSWOOD SOLICITORS LTD,2262693:158715579,"31,739.97",Legal Aid Higher Crime
MOJ,LAA,06/10/21,Legal Aid Higher Crime,LEGAL AID FUND,I A LAW,2262698:158716157,"71,163.96",Legal Aid Higher Crime
MOJ,LAA,06/10/21,Legal Aid Civil Representation,LEGAL AID FUND,MEGAN GILCHRIST,2262707:3000005646180013,"27,652.88",Legal Aid Civil Representation
MOJ,LAA,06/10/21,Legal Aid Civil Representation,LEGAL AID FUND,MEGAN GILCHRIST,2262707:3000005716280013,"36,144.22",Legal Aid Civil Representation
MOJ,LAA,06/10/21,Legal Aid Civil Representation,LEGAL AID FUND,GRAHAME STOWE BATESON,2262752:3000012834110004,"29,596.75",Legal Aid Civil Representation
MOJ,LAA,06/10/21,Legal Aid Higher Crime,LEGAL AID FUND,KEVIN R WALSH,2262891:158725597,"33,744.00",Legal Aid Higher Crime
MOJ,LAA,06/10/21,Legal Aid Civil Representation,LEGAL AID FUND,EDWARD DEVEREUX QC,2262894:3000006840120012,"40,140.36",Legal Aid Civil Representation
MOJ,LAA,06/10/21,Legal Aid Civil Representation,LEGAL AID FUND,JANE SMITH,2262899:3000007031550026,"38,400.00",Legal Aid Civil Representation
MOJ,LAA,06/10/21,Legal Aid Higher Crime,LEGAL AID FUND,SIMON GLEDHILL,2262905:158754601,"34,380.00",Legal Aid Higher Crime
MOJ,LAA,06/10/21,Legal Aid Civil Representation,LEGAL AID FUND,JOANNE PORTER,2263003:3000007066080015,"36,480.00",Legal Aid Civil Representation
MOJ,LAA,06/10/21,Legal Aid Higher Crime,LEGAL AID FUND,SEAN BRUNTON,2263079:158754255,"26,172.00",Legal Aid Higher Crime
MOJ,LAA,06/10/21,Legal Aid Higher Crime,LEGAL AID FUND,ADRIAN M LANGDALE,2263081:158716651,"32,628.00",Legal Aid Higher Crime
MOJ,LAA,06/10/21,Legal Aid Higher Crime,LEGAL AID FUND,RODERICK I JAMES,2263310:158721801,"61,720.00",Legal Aid Higher Crime
MOJ,LAA,06/10/21,Legal Aid Civil Representation,LEGAL AID FUND,PATRICIA M PRATT,2263318:3000003883820045,"55,867.28",Legal Aid Civil Representation
MOJ,LAA,06/10/21,Legal Aid Higher Crime,LEGAL AID FUND,NEIL A HAWES QC,2263323:158728263,"123,200.00",Legal Aid Higher Crime
MOJ,LAA,06/10/21,Legal Aid Higher Crime,LEGAL AID FUND,MICHAEL F R HOLLAND QC,2263344:158732453,"47,892.00",Legal Aid Higher Crime
MOJ,LAA,06/10/21,Legal Aid Higher Crime,LEGAL AID FUND,SIMON A PENTOL,2263360:158755341,"47,940.00",Legal Aid Higher Crime
MOJ,LAA,06/10/21,Legal Aid Civil Representation,LEGAL AID FUND,WHITE & CO SOLICITORS,2263426:3000005914160019,"25,075.81",Legal Aid Civil Representation
MOJ,LAA,06/10/21,Legal Aid Higher Crime,LEGAL AID FUND,ABRAHAM SOLICITORS LTD,2263440:158707146,"29,664.55",Legal Aid Higher Crime
MOJ,LAA,06/10/21,Legal Aid Higher Crime,LEGAL AID FUND,ABRAHAM SOLICITORS LTD,2263440:158707643,"28,447.13",Legal Aid Higher Crime
MOJ,LAA,06/10/21,Legal Aid Civil Representation,LEGAL AID FUND,MAKIN DIXON SOLICITORS LTD,2263442:3000002746300035,"38,230.55",Legal Aid Civil Representation
MOJ,LAA,06/10/21,Legal Aid Civil Representation,LEGAL AID FUND,GUILE NICHOLAS-INC DONALD GALBRAITH & CO,2263459:3000008923110005,"25,329.44",Legal Aid Civil Representation
MOJ,LAA,06/10/21,Legal Aid Higher Crime,LEGAL AID FUND,COX BURLEY SOLICITORS,2263463:158716258,"32,695.66",Legal Aid Higher Crime
MOJ,LAA,06/10/21,Legal Aid Civil Representation,LEGAL AID FUND,LEGAL SERVICES FOR CHILDREN,2263479:3000005281820008,"27,750.75",Legal Aid Civil Representation
MOJ,LAA,06/10/21,Legal Aid Civil Representation,LEGAL AID FUND,LEGAL SERVICES FOR CHILDREN,2263479:3000005683890010,"25,994.84",Legal Aid Civil Representation
MOJ,LAA,06/10/21,Legal Aid Higher Crime,LEGAL AID FUND,EBR ATTRIDGE LLP,2263482:158754312,"29,434.99",Legal Aid Higher Crime
MOJ,LAA,06/10/21,Legal Aid Civil Representation,LEGAL AID FUND,GARRATTS,2263501:3000004477420017,"29,037.17",Legal Aid Civil Representation
MOJ,LAA,06/10/21,Legal Aid Higher Crime,LEGAL AID FUND,CLIFFORD JOHNSTON & CO,2263521:158715403,"29,664.55",Legal Aid Higher Crime
MOJ,LAA,06/10/21,Legal Aid Civil Representation,LEGAL AID FUND,PATRICK LAWRENCE PARTNERSHIP LLP,2263567:3000005263310012,"62,535.06",Legal Aid Civil Representation
MOJ,LAA,06/10/21,Legal Aid Civil Representation,LEGAL AID FUND,MACKINTOSH LAW,2263570:158759834,"363,567.02",Legal Aid Civil Representation
MOJ,LAA,06/10/21,Legal Aid Civil Representation,LEGAL AID FUND,MACKINTOSH LAW,2263570:158759836,"26,465.74",Legal Aid Civil Representation
MOJ,LAA,06/10/21,Legal Aid Higher Crime,LEGAL AID FUND,MIAN & CO,2263586:158754629,"72,713.37",Legal Aid Higher Crime
MOJ,LAA,06/10/21,Legal Aid Civil Representation,LEGAL AID FUND,WILSON'S SOLICITORS,2263588:3000006350550006,"29,932.74",Legal Aid Civil Representation
MOJ,LAA,06/10/21,Legal Aid Higher Crime,LEGAL AID FUND,SIMPSON HEALD PEARSON,2263589:158725028,"40,909.56",Legal Aid Higher Crime
MOJ,LAA,06/10/21,Legal Aid Higher Crime,LEGAL AID FUND,WATSON WOODHOUSE LTD,2263621:158722484,"99,335.10",Legal Aid Higher Crime
MOJ,LAA,06/10/21,Legal Aid Higher Crime,LEGAL AID FUND,WATSON WOODHOUSE LTD,2263621:158725284,"26,475.92",Legal Aid Higher Crime
MOJ,LAA,06/10/21,Legal Aid Civil Representation,LEGAL AID FUND,MILES & PARTNERS LLP,2263628:3000011378460007,"26,316.21",Legal Aid Civil Representation
MOJ,LAA,06/10/21,Legal Aid Civil Representation,LEGAL AID FUND,PAYNE & PAYNE SOLICITORS,2263687:3000005596670018,"26,109.55",Legal Aid Civil Representation
MOJ,LAA,06/10/21,Legal Aid Civil Representation,LEGAL AID FUND,ROWBERRY MORRIS THAMES VALLEY LLP,2263710:3000001321640012,"40,514.26",Legal Aid Civil Representation
MOJ,LAA,06/10/21,Legal Aid Civil Representation,LEGAL AID FUND,HODGE JONES & ALLEN SOLICITORS LTD,2263738:158722055,"42,585.36",Legal Aid Civil Representation
MOJ,LAA,06/10/21,Legal Aid Civil Representation,LEGAL AID FUND,POWELL SPENCER AND PARTNERS,2263740:3000005805250010,"39,405.18",Legal Aid Civil Representation
MOJ,LAA,06/10/21,Legal Aid Civil Representation,LEGAL AID FUND,BRENDAN FLEMING SOLICITORS,2263755:3000005183750015,"32,611.88",Legal Aid Civil Representation
MOJ,LAA,06/10/21,Legal Aid Civil Representation,LEGAL AID FUND,RUBIN LEWIS O'BRIEN LLP,2263762:3000010731270012,"26,087.64",Legal Aid Civil Representation
MOJ,LAA,11/10/21,EXP - PURCHASE OF GOODS/SERVICES - OTHER - Translation / Interpreting Services,Central Funds,THEBIGWORD INTERPRETING SERVICES LTD,90805988,"1,035,295.60",Translation and interpreting services
MOJ,LAA,11/10/21,EXP - PURCHASE OF GOODS/SERVICES - OTHER - Central Funds - Other,Central Funds,EDMONDS MARSHALL MCMAHON,M1151700/173143,"28,277.04",Court costs
MOJ,LAA,11/10/21,EXP - PURCHASE OF GOODS/SERVICES - OTHER - Central Funds - Other,Central Funds,A WHALEY,M1156205/173186,"43,856.63",Court costs
MOJ,LAA,11/10/21,EXP - PURCHASE OF GOODS/SERVICES - OTHER - Central Funds - Other,Central Funds,R CABLE,M1156203/173182,"58,881.62",Court costs
MOJ,LAA,12/10/21,EXP - PURCHASE OF GOODS/SERVICES - NON-PO INVOICES PENDING REALLOCATION,Legal,GOVERNMENT LEGAL DEPARTMENT,A3416,"247,800.00",Legal services
MOJ,LAA,12/10/21,EXP - PURCHASE OF GOODS/SERVICES - OTHER - Central Funds - Other,Central Funds,EDMONDS MARSHALL MCMAHON,M1146114/173237,"50,000.00",Court costs
MOJ,LAA,12/10/21,EXP - MISCELLANEOUS EXPENDITURE - Compensation payments - third party,Central Salaried Defenders Service,W LEWIS,XXX0007,"80,910.51",Compensation claims
MOJ,LAA,13/10/21,Legal Aid Higher Crime,LEGAL AID FUND,BREYDONS SOLICITORS LTD,2264060:158809270,"73,922.47",Legal Aid Higher Crime
MOJ,LAA,13/10/21,Legal Aid Higher Crime,LEGAL AID FUND,SVS SOLICITORS-ADVOCATE,2264159:158774872,"33,690.00",Legal Aid Higher Crime
MOJ,LAA,13/10/21,Legal Aid Higher Crime,LEGAL AID FUND,TUCKERS SOLICITORS LLP,2264233:158782206,"72,372.67",Legal Aid Higher Crime
MOJ,LAA,13/10/21,Legal Aid Higher Crime,LEGAL AID FUND,KINGSMAN SOLICITORS LTD,2264277:158782172,"34,595.21",Legal Aid Higher Crime
MOJ,LAA,13/10/21,Legal Aid Higher Crime,LEGAL AID FUND,CASTLE SOLICITORS LTD,2264280:158764857,"79,351.20",Legal Aid Higher Crime
MOJ,LAA,13/10/21,Legal Aid Civil Representation,LEGAL AID FUND,DILLEX SOLICITORS,2264341:3000004843200019,"30,735.21",Legal Aid Civil Representation
MOJ,LAA,13/10/21,Legal Aid Civil Representation,LEGAL AID FUND,SWITALSKI'S SOLICITORS LTD,2264350:3000005371900014,"35,941.03",Legal Aid Civil Representation
MOJ,LAA,13/10/21,Legal Aid Civil Representation,LEGAL AID FUND,KERRY L BARKER,2264354:3000004515980052,"26,480.57",Legal Aid Civil Representation
MOJ,LAA,13/10/21,Legal Aid Higher Crime,LEGAL AID FUND,TUCKERS SOLICITORS LLP,2264405:158781916,"29,862.71",Legal Aid Higher Crime
MOJ,LAA,13/10/21,Legal Aid Higher Crime,LEGAL AID FUND,PHILIPPA M MCATASNEY QC,2264478:158763393,"78,516.00",Legal Aid Higher Crime
MOJ,LAA,13/10/21,Legal Aid Civil Representation,LEGAL AID FUND,KATHRYN M SKELLORN,2264479:3000006598190016,"30,000.00",Legal Aid Civil Representation
MOJ,LAA,13/10/21,Legal Aid Civil Representation,LEGAL AID FUND,LESLIE J SAMUELS QC,2264649:3000006225330023,"51,888.60",Legal Aid Civil Representation
MOJ,LAA,13/10/21,Legal Aid Civil Representation,LEGAL AID FUND,SANDRA FISHER,2264713:3000008403920003,"27,950.40",Legal Aid Civil Representation
MOJ,LAA,13/10/21,Legal Aid Civil Representation,LEGAL AID FUND,SHAN E MORRIS,2264756:3000004930450067,"50,154.70",Legal Aid Civil Representation
MOJ,LAA,13/10/21,Legal Aid Civil Representation,LEGAL AID FUND,VANESSA V MEACHIN QC,2264758:3000006926660025,"29,937.60",Legal Aid Civil Representation
MOJ,LAA,13/10/21,Legal Aid Civil Representation,LEGAL AID FUND,VANESSA V MEACHIN QC,2264758:3000009022910016,"32,432.40",Legal Aid Civil Representation
MOJ,LAA,13/10/21,Legal Aid Higher Crime,LEGAL AID FUND,ROBERT SALLIS,2264890:158763626,"34,410.00",Legal Aid Higher Crime
MOJ,LAA,13/10/21,Legal Aid Higher Crime,LEGAL AID FUND,WILLIAM L HUGHES QC,2264906:158809749,"43,764.00",Legal Aid Higher Crime
MOJ,LAA,13/10/21,Legal Aid Higher Crime,LEGAL AID FUND,VERONICA M RAMSDEN,2264924:158782360,"25,812.00",Legal Aid Higher Crime
MOJ,LAA,13/10/21,Legal Aid Higher Crime,LEGAL AID FUND,MBC SOLICITORS LTD,2264994:158809712,"81,410.04",Legal Aid Higher Crime
MOJ,LAA,13/10/21,Legal Aid Higher Crime,LEGAL AID FUND,MBC SOLICITORS LTD,2264994:158810257,"88,044.72",Legal Aid Higher Crime
MOJ,LAA,13/10/21,Legal Aid Civil Representation,LEGAL AID FUND,COPPERSTONE SOLICITORS LTD,2265020:3000005626290009,"26,681.04",Legal Aid Civil Representation
MOJ,LAA,13/10/21,Legal Aid Higher Crime,LEGAL AID FUND,LLOYDS PR SOLICITORS,2265025:158774694,"81,130.25",Legal Aid Higher Crime
MOJ,LAA,13/10/21,Legal Aid Civil Representation,LEGAL AID FUND,STERNBERG REED SOLICITORS,2265050:3000004737360031,"39,619.20",Legal Aid Civil Representation
MOJ,LAA,13/10/21,Legal Aid Higher Crime,LEGAL AID FUND,DUNCAN LEWIS SOLICITORS  LTD,2265073:158774713,"29,664.55",Legal Aid Higher Crime
MOJ,LAA,13/10/21,Legal Aid Higher Crime,LEGAL AID FUND,DUNCAN LEWIS SOLICITORS  LTD,2265073:158809971,"60,310.56",Legal Aid Higher Crime
MOJ,LAA,13/10/21,Legal Aid Higher Crime,LEGAL AID FUND,OLLIERS SOLICITORS LTD,2265092:158809846,"81,272.04",Legal Aid Higher Crime
MOJ,LAA,13/10/21,Legal Aid Higher Crime,LEGAL AID FUND,GHP LEGAL,2265095:158774250,"64,126.21",Legal Aid Higher Crime
MOJ,LAA,13/10/21,Legal Aid Civil Representation,LEGAL AID FUND,HOGANS SOLICITORS LTD,2265103:3000006207010009,"40,781.89",Legal Aid Civil Representation
MOJ,LAA,13/10/21,Legal Aid Higher Crime,LEGAL AID FUND,AMOSU ROBINSHAW LTD,2265122:158791327,"33,308.64",Legal Aid Higher Crime
MOJ,LAA,13/10/21,Legal Aid Higher Crime,LEGAL AID FUND,MARK JONES & PARTNERS LTD,2265132:158773843,"62,543.68",Legal Aid Higher Crime
MOJ,LAA,13/10/21,Legal Aid Civil Representation,LEGAL AID FUND,CLARK WILLIS LAW FIRM,2265185:3000004305430045,"61,641.26",Legal Aid Civil Representation
MOJ,LAA,13/10/21,Legal Aid Civil Representation,LEGAL AID FUND,HOWELLS LLP,2265188:3000006407230013,"31,183.76",Legal Aid Civil Representation
MOJ,LAA,13/10/21,Legal Aid Civil Representation,LEGAL AID FUND,OXLEY & COWARD SOLICITORS LLP,2265193:3000005113350018,"44,980.77",Legal Aid Civil Representation
MOJ,LAA,13/10/21,Legal Aid Civil Representation,LEGAL AID FUND,ELLIOT MATHER LLP,2265204:3000006710420008,"27,983.52",Legal Aid Civil Representation
MOJ,LAA,13/10/21,Legal Aid Civil Representation,LEGAL AID FUND,FINN GLEDHILL,2265213:3000006812150010,"25,470.24",Legal Aid Civil Representation
MOJ,LAA,13/10/21,Legal Aid Civil Representation,LEGAL AID FUND,THE RINGROSE LAW,2265218:3000006599040015,"25,074.08",Legal Aid Civil Representation
MOJ,LAA,13/10/21,Legal Aid Civil Representation,LEGAL AID FUND,SUGARE & CO,2265232:3000005603250022,"64,143.90",Legal Aid Civil Representation
MOJ,LAA,13/10/21,Legal Aid Civil Representation,LEGAL AID FUND,LOCKINGS SOLICITORS,2265260:3000005609520017,"61,331.96",Legal Aid Civil Representation
MOJ,LAA,13/10/21,Legal Aid Civil Representation,LEGAL AID FUND,LOCKINGS SOLICITORS,2265260:3000006023540011,"36,206.23",Legal Aid Civil Representation
MOJ,LAA,13/10/21,Legal Aid Civil Representation,LEGAL AID FUND,COCKS LLOYD,2265262:3000006318180009,"25,216.19",Legal Aid Civil Representation
MOJ,LAA,13/10/21,Legal Aid Civil Representation,LEGAL AID FUND,EVANS DERRY SOLICITORS,2265280:3000006889820006,"25,092.81",Legal Aid Civil Representation
MOJ,LAA,13/10/21,Legal Aid Higher Crime,LEGAL AID FUND,TAYLOR ROSE MW SOLICITORS,2265288:158810527,"25,876.64",Legal Aid Higher Crime
MOJ,LAA,13/10/21,Legal Aid Civil Representation,LEGAL AID FUND,JACKSON LEES GROUP LTD,2265300:3000004711940014,"102,666.45",Legal Aid Civil Representation
MOJ,LAA,13/10/21,Legal Aid Civil Representation,LEGAL AID FUND,JACKSON LEES GROUP LTD,2265300:3000005292880025,"30,571.79",Legal Aid Civil Representation
MOJ,LAA,13/10/21,Legal Aid Civil Representation,LEGAL AID FUND,SILKS SOLICITORS,2265325:3000004298580048,"55,531.71",Legal Aid Civil Representation
MOJ,LAA,13/10/21,Legal Aid Civil Representation,LEGAL AID FUND,TALBOTS LAW LTD,2265350:3000005961560037,"26,070.99",Legal Aid Civil Representation
MOJ,LAA,13/10/21,Legal Aid Higher Crime,LEGAL AID FUND,MARTYN HEWETT,2265358:158791929,"45,861.17",Legal Aid Higher Crime
MOJ,LAA,13/10/21,Legal Aid Civil Representation,LEGAL AID FUND,ROBINSON ALLFREE,2265377:3000003996950034,"32,476.20",Legal Aid Civil Representation
MOJ,LAA,13/10/21,Legal Aid Higher Crime,LEGAL AID FUND,MOSS & CO SOLICITORS,2265382:158809084,"89,975.11",Legal Aid Higher Crime
MOJ,LAA,13/10/21,Legal Aid Higher Crime,LEGAL AID FUND,O'KEEFFE SOLICITORS,2265398:158814604,"39,290.59",Legal Aid Higher Crime
MOJ,LAA,13/10/21,Legal Aid Civil Representation,LEGAL AID FUND,STONE KING LLP,2265472:3000005571840028,"38,525.62",Legal Aid Civil Representation
MOJ,LAA,13/10/21,Legal Aid Civil Representation,LEGAL AID FUND,HRS FAMILY LAW SOLICITORS LTD,2265530:3000006576500019,"26,400.00",Legal Aid Civil Representation
MOJ,LAA,13/10/21,Legal Aid Civil Representation,LEGAL AID FUND,ALCOTT SOLICITORS,2265540:3000006230610021,"38,875.87",Legal Aid Civil Representation
MOJ,LAA,13/10/21,Legal Aid Civil Representation,LEGAL AID FUND,A & N CARE SOLICITORS,2265556:3000005982550014,"32,951.42",Legal Aid Civil Representation
MOJ,LAA,13/10/21,Legal Aid Higher Crime,LEGAL AID FUND,GRAHAM & CO SOLICITORS LTD,2265615:158809381,"74,077.12",Legal Aid Higher Crime
MOJ,LAA,13/10/21,Legal Aid Civil Representation,LEGAL AID FUND,LEWIS RODGERS LTD,2265641:3000006018320011,"33,190.95",Legal Aid Civil Representation
MOJ,LAA,13/10/21,Legal Aid Higher Crime,LEGAL AID FUND,EVAN MOORE SOLICITORS,2265642:158774692,"33,608.96",Legal Aid Higher Crime
MOJ,LAA,13/10/21,Legal Aid Civil Representation,LEGAL AID FUND,MELANIE C DE FREITAS,2265852:3000006926660024,"28,981.58",Legal Aid Civil Representation
MOJ,LAA,13/10/21,Legal Aid Civil Representation,LEGAL AID FUND,LEWIS RODGERS LTD,2265943:3000005973580024,"25,181.98",Legal Aid Civil Representation
MOJ,LAA,13/10/21,Legal Aid Civil Representation,LEGAL AID FUND,COVENT GARDEN FAMILY LAW SOLICITORS,2265944:3000004902240015,"53,188.71",Legal Aid Civil Representation
MOJ,LAA,13/10/21,Legal Aid Civil Representation,LEGAL AID FUND,NAOMI MARIA MADDERSON,2266008:3000004786550033,"33,652.80",Legal Aid Civil Representation
MOJ,LAA,13/10/21,Legal Aid Civil Representation,LEGAL AID FUND,KATE V BRANIGAN QC,2266043:3000006185950039,"31,557.60",Legal Aid Civil Representation
MOJ,LAA,13/10/21,Legal Aid Civil Representation,LEGAL AID FUND,KATE V BRANIGAN QC,2266043:3000007858470017,"34,800.00",Legal Aid Civil Representation
MOJ,LAA,13/10/21,Legal Aid Civil Representation,LEGAL AID FUND,NICHOLAS BROWN,2266052:3000002923700013,"104,716.80",Legal Aid Civil Representation
MOJ,LAA,13/10/21,Legal Aid Civil Representation,LEGAL AID FUND,SAMANTHA L KING,2266055:3000007066080016,"62,400.00",Legal Aid Civil Representation
MOJ,LAA,13/10/21,Legal Aid Lower Crime,LEGAL AID FUND,MARK J SUMMERS,2266134:158777761,"25,362.00",Legal Aid Lower Crime
MOJ,LAA,13/10/21,Legal Aid Civil Representation,LEGAL AID FUND,STEPHEN CHIPPECK,2266159:3000005263310013,"60,053.33",Legal Aid Civil Representation
MOJ,LAA,13/10/21,Legal Aid Higher Crime,LEGAL AID FUND,HUW EDWARDS,2266268:158764011,"34,380.00",Legal Aid Higher Crime
MOJ,LAA,13/10/21,Legal Aid Higher Crime,LEGAL AID FUND,KENYON MCATEER SOLICITORS,2266354:158764959,"29,155.23",Legal Aid Higher Crime
MOJ,LAA,13/10/21,Legal Aid Higher Crime,LEGAL AID FUND,UK LAW SOLICITORS LTD,2266355:158774848,"39,944.15",Legal Aid Higher Crime
MOJ,LAA,13/10/21,Legal Aid Higher Crime,LEGAL AID FUND,NEWGATE SOLICITORS,2266389:158782897,"26,893.52",Legal Aid Higher Crime
MOJ,LAA,13/10/21,Legal Aid Higher Crime,LEGAL AID FUND,HURRAIRAH HARRIS SOLICITORS,2266397:158809945,"129,088.88",Legal Aid Higher Crime
MOJ,LAA,13/10/21,Legal Aid Higher Crime,LEGAL AID FUND,HUSSEIN SOLICITORS,2266412:158809610,"74,196.23",Legal Aid Higher Crime
MOJ,LAA,13/10/21,Legal Aid Civil Representation,LEGAL AID FUND,MOORE BARLOW LLP,2266425:158776731,"27,396.43",Legal Aid Civil Representation
MOJ,LAA,13/10/21,Legal Aid Higher Crime,LEGAL AID FUND,HEDLEY SOLICITORS,2266430:158773628,"45,018.90",Legal Aid Higher Crime
MOJ,LAA,13/10/21,Legal Aid Civil Representation,LEGAL AID FUND,CORPER SOLICITORS,2266436:3000008723930018,"26,251.72",Legal Aid Civil Representation
MOJ,LAA,13/10/21,Legal Aid Civil Representation,LEGAL AID FUND,CREIGHTON & PARTNERS SOLICITORS LTD,2266454:3000005358710012,"27,238.91",Legal Aid Civil Representation
MOJ,LAA,13/10/21,Legal Aid Civil Representation,LEGAL AID FUND,CREIGHTON & PARTNERS SOLICITORS LTD,2266454:3000006569180009,"36,186.12",Legal Aid Civil Representation
MOJ,LAA,13/10/21,Legal Aid Civil Representation,LEGAL AID FUND,CREIGHTON & PARTNERS SOLICITORS LTD,2266454:3000006755560006,"27,474.09",Legal Aid Civil Representation
MOJ,LAA,13/10/21,Legal Aid Higher Crime,LEGAL AID FUND,IRVINE THANVI NATAS SOLICITORS,2266459:158791567,"37,340.63",Legal Aid Higher Crime
MOJ,LAA,13/10/21,Legal Aid Higher Crime,LEGAL AID FUND,BRYSONS SOLICITORS,2266467:158810460,"54,228.39",Legal Aid Higher Crime
MOJ,LAA,13/10/21,Legal Aid Higher Crime,LEGAL AID FUND,DAVID GRAY LLP,2266490:158809822,"28,969.56",Legal Aid Higher Crime
MOJ,LAA,13/10/21,Legal Aid Higher Crime,LEGAL AID FUND,ABR SOLICITORS,2266496:158783277,"81,272.04",Legal Aid Higher Crime
MOJ,LAA,13/10/21,Legal Aid Civil Representation,LEGAL AID FUND,CARTWRIGHT KING LTD,2266541:157068258,"26,683.65",Legal Aid Civil Representation
MOJ,LAA,13/10/21,Legal Aid Higher Crime,LEGAL AID FUND,MCNEIL & CO SOLICITORS,2266549:158782472,"89,975.11",Legal Aid Higher Crime
MOJ,LAA,13/10/21,Legal Aid Higher Crime,LEGAL AID FUND,METCALFE COPEMAN & PETTEFAR,2266557:158792042,"71,150.54",Legal Aid Higher Crime
MOJ,LAA,13/10/21,Legal Aid Civil Representation,LEGAL AID FUND,GARY JACOBS & CO LTD,2266589:3000005659610014,"25,772.25",Legal Aid Civil Representation
MOJ,LAA,13/10/21,Legal Aid Civil Representation,LEGAL AID FUND,GARY JACOBS & CO LTD,2266589:3000006237900008,"61,753.66",Legal Aid Civil Representation
MOJ,LAA,13/10/21,Legal Aid Civil Representation,LEGAL AID FUND,GREENS SOLICITORS LTD,2266603:3000005946110015,"29,837.43",Legal Aid Civil Representation
MOJ,LAA,13/10/21,Legal Aid Higher Crime,LEGAL AID FUND,REEDS SOLICITORS LLP,2266631:158782321,"52,704.13",Legal Aid Higher Crime
MOJ,LAA,13/10/21,Legal Aid Civil Representation,LEGAL AID FUND,BERKSON FAMILY LAW SOLICITORS LTD,2266650:3000006474410007,"26,583.14",Legal Aid Civil Representation
MOJ,LAA,13/10/21,Legal Aid Higher Crime,LEGAL AID FUND,MICHAEL SALT SOLICITORS,2266659:158791265,"28,697.13",Legal Aid Higher Crime
MOJ,LAA,13/10/21,Legal Aid Civil Representation,LEGAL AID FUND,RUSSELL COOKE LLP,2266677:158778647,"30,717.66",Legal Aid Civil Representation
MOJ,LAA,13/10/21,Legal Aid Higher Crime,LEGAL AID FUND,BARRETT & NELLIGAN SOLICITORS LTD,2266692:158773847,"26,104.40",Legal Aid Higher Crime
MOJ,LAA,13/10/21,Legal Aid Higher Crime,LEGAL AID FUND,MACKENZIE & CO,2266748:158763861,"29,664.55",Legal Aid Higher Crime
MOJ,LAA,13/10/21,Legal Aid Civil Representation,LEGAL AID FUND,ATKINS HOPE SOLICITORS LTD,2266758:3000005910230007,"30,368.17",Legal Aid Civil Representation
MOJ,LAA,13/10/21,Legal Aid Civil Representation,LEGAL AID FUND,BLACKFORDS LLP,2266761:3000004690130037,"46,591.20",Legal Aid Civil Representation
MOJ,LAA,13/10/21,Legal Aid Civil Representation,LEGAL AID FUND,EDWARDS DUTHIE SHAMASH SOLICITORS,2266788:3000006602850004,"28,939.75",Legal Aid Civil Representation
MOJ,LAA,13/10/21,Legal Aid Civil Representation,LEGAL AID FUND,GILL AKASTER LLP,2266819:3000007083420017,"25,369.57",Legal Aid Civil Representation
MOJ,LAA,13/10/21,Legal Aid Civil Representation,LEGAL AID FUND,CAMPBELL HOOPER & CO LLP,2266824:3000003723870023,"30,386.98",Legal Aid Civil Representation
MOJ,LAA,13/10/21,Legal Aid Civil Representation,LEGAL AID FUND,BLASER MILLS LLP,2266828:3000006372800023,"25,496.46",Legal Aid Civil Representation
MOJ,LAA,13/10/21,Legal Aid Higher Crime,LEGAL AID FUND,HARWOOD SOLICITORS,2267122:158809921,"37,455.31",Legal Aid Higher Crime
MOJ,LAA,13/10/21,Legal Aid Higher Crime,LEGAL AID FUND,WOOLFE & CO SOLICITORS LTD,2267132:158774103,"107,574.07",Legal Aid Higher Crime
MOJ,LAA,13/10/21,Legal Aid Higher Crime,LEGAL AID FUND,SADIQUE & UDDIN SOLICITORS LTD,2267175:158783419,"47,224.70",Legal Aid Higher Crime
MOJ,LAA,13/10/21,Legal Aid Civil Representation,LEGAL AID FUND,JANE M CURNIN,2267202:3000006237580016,"49,032.00",Legal Aid Civil Representation
MOJ,LAA,13/10/21,Legal Aid Higher Crime,LEGAL AID FUND,CHRISTOB SOLICITORS,2267210:158810259,"45,801.66",Legal Aid Higher Crime
MOJ,LAA,13/10/21,Legal Aid Higher Crime,LEGAL AID FUND,FINSBURY LAW SOLICITORS LTD,2267256:158763922,"37,141.74",Legal Aid Higher Crime
MOJ,LAA,13/10/21,Legal Aid Civil Representation,LEGAL AID FUND,FLG LTD,2267258:3000008268120008,"29,015.48",Legal Aid Civil Representation
MOJ,LAA,13/10/21,Legal Aid Civil Representation,LEGAL AID FUND,PETER LYNN & PARTNERS,2267313:3000006131260017,"36,956.46",Legal Aid Civil Representation
MOJ,LAA,13/10/21,Legal Aid Civil Representation,LEGAL AID FUND,PAUL CROWLEY & CO SOLICITORS LTD,2267357:3000003382110016,"25,067.36",Legal Aid Civil Representation
MOJ,LAA,13/10/21,Legal Aid Civil Representation,LEGAL AID FUND,ELIZABETH MCGRATH QC,2267429:3000009955510020,"54,270.00",Legal Aid Civil Representation
MOJ,LAA,13/10/21,Legal Aid Higher Crime,LEGAL AID FUND,STEPHEN J BAILEY,2267462:158809966,"32,322.00",Legal Aid Higher Crime
MOJ,LAA,13/10/21,Legal Aid Civil Representation,LEGAL AID FUND,SARAH L FEARON,2267545:3000005404340020,"42,433.07",Legal Aid Civil Representation
MOJ,LAA,13/10/21,Legal Aid Civil Representation,LEGAL AID FUND,GEORGE V BUTLER,2267551:3000003996950035,"38,130.26",Legal Aid Civil Representation
MOJ,LAA,13/10/21,Legal Aid Civil Representation,LEGAL AID FUND,FRANK T FEEHAN QC,2267593:3000007690140011,"33,337.81",Legal Aid Civil Representation
MOJ,LAA,13/10/21,Legal Aid Higher Crime,LEGAL AID FUND,BALRAJ S BHATIA,2267620:158809843,"32,580.00",Legal Aid Higher Crime
MOJ,LAA,13/10/21,Legal Aid Higher Crime,LEGAL AID FUND,ANTHONY C BERRY QC,2267794:158809717,"54,852.00",Legal Aid Higher Crime
MOJ,LAA,13/10/21,Legal Aid Civil Representation,LEGAL AID FUND,REBEKAH M WILSON,2267816:3000006372800024,"26,211.08",Legal Aid Civil Representation
MOJ,LAA,13/10/21,Legal Aid Higher Crime,LEGAL AID FUND,NAEEM MIAN QC,2267828:158810012,"46,548.00",Legal Aid Higher Crime
MOJ,LAA,13/10/21,Legal Aid Civil Representation,LEGAL AID FUND,MATTHEW D MAYNARD,2267833:3000004298580049,"50,628.80",Legal Aid Civil Representation
MOJ,LAA,13/10/21,Legal Aid Higher Crime,LEGAL AID FUND,TANA M T ADKIN QC,2267846:158774374,"43,716.00",Legal Aid Higher Crime
MOJ,LAA,13/10/21,Legal Aid Civil Representation,LEGAL AID FUND,NICHOLAS W STONOR,2267869:3000006237580017,"58,255.20",Legal Aid Civil Representation
MOJ,LAA,13/10/21,Legal Aid Higher Crime,LEGAL AID FUND,RAJ LAW,2267878:158810095,"27,381.72",Legal Aid Higher Crime
MOJ,LAA,13/10/21,Legal Aid Higher Crime,LEGAL AID FUND,I B B LAW LLP,2267898:158774733,"55,266.85",Legal Aid Higher Crime
MOJ,LAA,13/10/21,Legal Aid Civil Representation,LEGAL AID FUND,GANGAR & CO,2267906:3000002923700012,"127,694.66",Legal Aid Civil Representation
MOJ,LAA,13/10/21,Legal Aid Higher Crime,LEGAL AID FUND,NEWTON LAW PRACTICE,2267913:158773247,"29,113.44",Legal Aid Higher Crime
MOJ,LAA,13/10/21,Legal Aid Civil Representation,LEGAL AID FUND,LEGAL SERVICES FOR CHILDREN,2267914:3000006158860012,"29,918.00",Legal Aid Civil Representation
MOJ,LAA,13/10/21,Legal Aid Higher Crime,LEGAL AID FUND,EBR ATTRIDGE LLP,2267920:158773133,"72,713.37",Legal Aid Higher Crime
MOJ,LAA,13/10/21,Legal Aid Civil Representation,LEGAL AID FUND,MAKIN DIXON SOLICITORS LTD,2267923:3000006237580015,"44,504.18",Legal Aid Civil Representation
MOJ,LAA,13/10/21,Legal Aid Civil Representation,LEGAL AID FUND,WOODFINES LLP,2267938:3000005516300019,"63,024.38",Legal Aid Civil Representation
MOJ,LAA,13/10/21,Legal Aid Civil Representation,LEGAL AID FUND,STERNBERG REED SOLICITORS,2267941:3000001523880026,"25,173.68",Legal Aid Civil Representation
MOJ,LAA,13/10/21,Legal Aid Civil Representation,LEGAL AID FUND,DAVIS & SIMMONDS & DONAGHEY,2267946:3000006143510020,"33,707.87",Legal Aid Civil Representation
MOJ,LAA,13/10/21,Legal Aid Higher Crime,LEGAL AID FUND,STRAND LEGAL SERVICES LTD,2267957:158809373,"59,276.52",Legal Aid Higher Crime
MOJ,LAA,13/10/21,Legal Aid Higher Crime,LEGAL AID FUND,RUSTEM GUARDIAN SOLICITORS LTD,2267971:158781919,"37,038.84",Legal Aid Higher Crime
MOJ,LAA,13/10/21,Legal Aid Higher Crime,LEGAL AID FUND,SIMPSON HEALD PEARSON,2267973:158782764,"49,065.55",Legal Aid Higher Crime
MOJ,LAA,13/10/21,Legal Aid Higher Crime,LEGAL AID FUND,TRANTERS SOLICITORS LTD,2267975:158774626,"31,559.75",Legal Aid Higher Crime
MOJ,LAA,13/10/21,Legal Aid Higher Crime,LEGAL AID FUND,BUXTON RYAN & CO,2268014:158782034,"29,664.55",Legal Aid Higher Crime
MOJ,LAA,13/10/21,Legal Aid Higher Crime,LEGAL AID FUND,DALTON HOLMES GRAY,2268022:158763538,"79,130.87",Legal Aid Higher Crime
MOJ,LAA,13/10/21,Legal Aid Civil Representation,LEGAL AID FUND,W M B LAW LTD,2268053:3000006611230012,"35,804.46",Legal Aid Civil Representation
MOJ,LAA,13/10/21,Legal Aid Civil Representation,LEGAL AID FUND,WARD HADAWAY,2268092:3000003528150013,"38,130.71",Legal Aid Civil Representation
MOJ,LAA,13/10/21,Legal Aid Civil Representation,LEGAL AID FUND,WARD HADAWAY,2268092:3000004308410025,"34,768.96",Legal Aid Civil Representation
MOJ,LAA,13/10/21,Legal Aid Civil Representation,LEGAL AID FUND,MKB SOLICITORS LLP,2268097:3000006052960018,"45,126.75",Legal Aid Civil Representation
MOJ,LAA,13/10/21,Legal Aid Civil Representation,LEGAL AID FUND,LAWSON & THOMPSON,2268106:3000003551090004,"61,892.08",Legal Aid Civil Representation
MOJ,LAA,13/10/21,Legal Aid Civil Representation,LEGAL AID FUND,SAMUEL PHILLIPS LAW FIRM,2268152:3000004404750013,"43,085.98",Legal Aid Civil Representation
MOJ,LAA,13/10/21,Legal Aid Civil Representation,LEGAL AID FUND,EVERETT TOMLIN LLOYD & PRATT,2268178:3000006844700021,"26,971.29",Legal Aid Civil Representation
MOJ,LAA,13/10/21,Legal Aid Civil Representation,LEGAL AID FUND,MLL LTD,2268227:3000006850420010,"26,393.76",Legal Aid Civil Representation
MOJ,LAA,13/10/21,Legal Aid Civil Representation,LEGAL AID FUND,ANTHONY COLLINS LLP,2268229:3000003276320014,"63,638.74",Legal Aid Civil Representation
MOJ,LAA,13/10/21,Legal Aid Civil Representation,LEGAL AID FUND,ANTHONY COLLINS LLP,2268229:3000005841950023,"25,149.30",Legal Aid Civil Representation
MOJ,LAA,14/10/21,EXP - MISCELLANEOUS EXPENDITURE - Litigator,Central Funds,TATES SOLICITORS,M1145085/169238,"32,514.16",Legal services
MOJ,LAA,14/10/21,EXP - PURCHASE OF GOODS/SERVICES - OTHER - Translation / Interpreting Services,Central Funds,CLARION INTERPRETING LTD,65740,"62,166.58",Translation and interpreting services
MOJ,LAA,15/10/21,EXP - MISCELLANEOUS EXPENDITURE - Litigator,Central Funds,MESSRS GRECH GOODEN SOLICITORS,M1156622/173517,"27,950.32",Legal services
MOJ,LAA,20/10/21,EXP - PURCHASE OF GOODS/SERVICES - OFFICE RELATED - POSTAGE,Civil Case Management - Newcastle,DX NETWORK SERVICES LTD,83249929,"47,508.84",Postage costs
MOJ,LAA,20/10/21,Legal Aid Higher Crime,LEGAL AID FUND,IMRAN KHAN & PARTNERS,2268509:158829488,"26,080.73",Legal Aid Higher Crime
MOJ,LAA,20/10/21,Legal Aid Higher Crime,LEGAL AID FUND,IMRAN KHAN & PARTNERS,2268509:158847015,"35,792.27",Legal Aid Higher Crime
MOJ,LAA,20/10/21,Legal Aid Higher Crime,LEGAL AID FUND,MOSS & CO SOLICITORS,2268516:158819689,"67,726.70",Legal Aid Higher Crime
MOJ,LAA,20/10/21,Legal Aid Higher Crime,LEGAL AID FUND,FELLOWES SOLICITORS LLP,2268520:158864892,"79,547.76",Legal Aid Higher Crime
MOJ,LAA,20/10/21,Legal Aid Higher Crime,LEGAL AID FUND,MARTYN HEWETT,2268527:158828444,"28,011.70",Legal Aid Higher Crime
MOJ,LAA,20/10/21,Legal Aid Higher Crime,LEGAL AID FUND,BLACKFORDS LLP,2268550:158869583,"25,897.13",Legal Aid Higher Crime
MOJ,LAA,20/10/21,Legal Aid Higher Crime,LEGAL AID FUND,J D SOLICITORS LTD,2268697:158865810,"129,088.88",Legal Aid Higher Crime
MOJ,LAA,20/10/21,Legal Aid Higher Crime,LEGAL AID FUND,METRO LAW SOLICITORS LTD,2268698:158838170,"44,570.98",Legal Aid Higher Crime
MOJ,LAA,20/10/21,Legal Aid Higher Crime,LEGAL AID FUND,SPERRIN  LAW LTD,2268753:158847444,"29,664.55",Legal Aid Higher Crime
MOJ,LAA,20/10/21,Legal Aid Higher Crime,LEGAL AID FUND,SPERRIN  LAW LTD,2268753:158865962,"67,599.25",Legal Aid Higher Crime
MOJ,LAA,20/10/21,Legal Aid Higher Crime,LEGAL AID FUND,DANIEL DARNBROUGH,2268787:158865118,"25,362.00",Legal Aid Higher Crime
MOJ,LAA,20/10/21,Legal Aid Higher Crime,LEGAL AID FUND,DAVID  MILLER,2268804:158844482,"324,952.14",Legal Aid Higher Crime
MOJ,LAA,20/10/21,Legal Aid Higher Crime,LEGAL AID FUND,GRAHAM SMITH,2268868:158829397,"26,754.00",Legal Aid Higher Crime
MOJ,LAA,20/10/21,Legal Aid Civil Representation,LEGAL AID FUND,LORNA G MEYER QC,2268971:3000002654790055,"163,818.72",Legal Aid Civil Representation
MOJ,LAA,20/10/21,Legal Aid Civil Representation,LEGAL AID FUND,NICHOLAS A J GOODWIN QC,2268995:3000004008690024,"66,385.80",Legal Aid Civil Representation
MOJ,LAA,20/10/21,Legal Aid Civil Representation,LEGAL AID FUND,WMC LEGAL LLP,2269163:3000006018670030,"25,332.11",Legal Aid Civil Representation
MOJ,LAA,20/10/21,Legal Aid Higher Crime,LEGAL AID FUND,ABR SOLICITORS,2269186:158837800,"67,726.70",Legal Aid Higher Crime
MOJ,LAA,20/10/21,Legal Aid Civil Representation,LEGAL AID FUND,GRAHAME STOWE BATESON,2269190:3000005634730027,"53,635.51",Legal Aid Civil Representation
MOJ,LAA,20/10/21,Legal Aid Higher Crime,LEGAL AID FUND,HUSSAIN SOLICITORS LTD,2269200:158838374,"29,664.55",Legal Aid Higher Crime
MOJ,LAA,20/10/21,Legal Aid Legal Help,LEGAL AID FUND,DIRECT HELP & ADVICE LTD,2269201:158862498,"32,660.68",Legal Aid Legal Help
MOJ,LAA,20/10/21,Legal Aid Higher Crime,LEGAL AID FUND,LLOYDS PR SOLICITORS,2269203:158864460,"29,664.55",Legal Aid Higher Crime
MOJ,LAA,20/10/21,Legal Aid Civil Representation,LEGAL AID FUND,OXFORD LAW GROUP LTD,2269210:3000006745670009,"34,237.69",Legal Aid Civil Representation
MOJ,LAA,20/10/21,Legal Aid Civil Representation,LEGAL AID FUND,BBNM LAW,2269218:3000005429590009,"36,758.70",Legal Aid Civil Representation
MOJ,LAA,20/10/21,Legal Aid Higher Crime,LEGAL AID FUND,JONAS ROY BLOOM,2269224:158838196,"74,587.60",Legal Aid Higher Crime
MOJ,LAA,20/10/21,Legal Aid Civil Representation,LEGAL AID FUND,MKB SOLICITORS LLP,2269313:3000005268570022,"41,701.25",Legal Aid Civil Representation
MOJ,LAA,20/10/21,Legal Aid Civil Representation,LEGAL AID FUND,ESKINAZI & CO,2269326:3000004821520033,"31,433.27",Legal Aid Civil Representation
MOJ,LAA,20/10/21,Legal Aid Civil Representation,LEGAL AID FUND,HAWLEY & RODGERS,2269334:3000004004210041,"27,204.29",Legal Aid Civil Representation
MOJ,LAA,20/10/21,Legal Aid Higher Crime,LEGAL AID FUND,REES CLAYTON SOLICITORS LTD,2269462:158818901,"35,610.84",Legal Aid Higher Crime
MOJ,LAA,20/10/21,Legal Aid Higher Crime,LEGAL AID FUND,LAWTONS SOLICITORS LTD,2269485:158818920,"70,119.39",Legal Aid Higher Crime
MOJ,LAA,20/10/21,Legal Aid Higher Crime,LEGAL AID FUND,CANTARIS LOCKE SOLICITORS,2269550:158865627,"67,481.33",Legal Aid Higher Crime
MOJ,LAA,20/10/21,Legal Aid Civil Representation,LEGAL AID FUND,ENFIELD FAMILY LAW LTD,2269554:3000006435940013,"36,244.52",Legal Aid Civil Representation
MOJ,LAA,20/10/21,Legal Aid Civil Representation,LEGAL AID FUND,ALBIN & CO LTD,2269591:3000005206330014,"49,334.14",Legal Aid Civil Representation
MOJ,LAA,20/10/21,Legal Aid Civil Representation,LEGAL AID FUND,WILSONS SOLICITORS (UK) LTD,2269629:3000007028760003,"26,045.88",Legal Aid Civil Representation
MOJ,LAA,20/10/21,Legal Aid Higher Crime,LEGAL AID FUND,IAN J WHITEHURST,2269752:158829399,"56,340.00",Legal Aid Higher Crime
MOJ,LAA,20/10/21,Legal Aid Civil Representation,LEGAL AID FUND,HELEN C HARPER,2269754:3000002770260090,"53,976.76",Legal Aid Civil Representation
MOJ,LAA,20/10/21,Legal Aid Higher Crime,LEGAL AID FUND,ANDREW P FRYMANN,2269796:158865666,"26,730.00",Legal Aid Higher Crime
MOJ,LAA,20/10/21,Legal Aid Civil Representation,LEGAL AID FUND,JACKIE MCKIE,2269799:3000004724310024,"37,172.78",Legal Aid Civil Representation
MOJ,LAA,20/10/21,Legal Aid Higher Crime,LEGAL AID FUND,IAN S UNSWORTH QC,2269804:158828836,"43,716.00",Legal Aid Higher Crime
MOJ,LAA,20/10/21,Legal Aid Higher Crime,LEGAL AID FUND,CLAIRE COOPER,2269829:158828944,"26,208.00",Legal Aid Higher Crime
MOJ,LAA,20/10/21,Legal Aid Civil Representation,LEGAL AID FUND,LUKE BROWN,2269880:3000012940620019,"35,323.99",Legal Aid Civil Representation
MOJ,LAA,20/10/21,Legal Aid Higher Crime,LEGAL AID FUND,MTC & CO SOLICITORS,2269905:158838757,"107,970.13",Legal Aid Higher Crime
MOJ,LAA,20/10/21,Legal Aid Higher Crime,LEGAL AID FUND,FMB LTD,2269920:158829281,"26,698.09",Legal Aid Higher Crime
MOJ,LAA,20/10/21,Legal Aid Higher Crime,LEGAL AID FUND,EBR ATTRIDGE LLP,2269928:158837864,"72,713.37",Legal Aid Higher Crime
MOJ,LAA,20/10/21,Legal Aid Civil Representation,LEGAL AID FUND,MAKIN DIXON SOLICITORS LTD,2269932:3000006462450023,"36,586.18",Legal Aid Civil Representation
MOJ,LAA,20/10/21,Legal Aid Civil Representation,LEGAL AID FUND,MAKIN DIXON SOLICITORS LTD,2269932:3000006948080017,"33,657.94",Legal Aid Civil Representation
MOJ,LAA,20/10/21,Legal Aid Higher Crime,LEGAL AID FUND,MURRAYS SOLICITORS LTD,2269934:158819868,"89,975.11",Legal Aid Higher Crime
MOJ,LAA,20/10/21,Legal Aid Higher Crime,LEGAL AID FUND,LIBERTY LAW SOLICITORS LTD,2269962:158839252,"105,812.97",Legal Aid Higher Crime
MOJ,LAA,20/10/21,Legal Aid Civil Representation,LEGAL AID FUND,DAVIS & SIMMONDS & DONAGHEY,2269967:3000006026900027,"43,687.51",Legal Aid Civil Representation
MOJ,LAA,20/10/21,Legal Aid Civil Representation,LEGAL AID FUND,DUNCAN LEWIS SOLICITORS  LTD,2269981:3000002770260091,"50,021.75",Legal Aid Civil Representation
MOJ,LAA,20/10/21,Legal Aid Civil Representation,LEGAL AID FUND,FINN GLEDHILL,2270029:3000006411770015,"29,271.70",Legal Aid Civil Representation
MOJ,LAA,20/10/21,Legal Aid Civil Representation,LEGAL AID FUND,TOZERS LLP,2270031:3000006249460017,"28,599.07",Legal Aid Civil Representation
MOJ,LAA,20/10/21,Legal Aid Civil Representation,LEGAL AID FUND,MASON BAGGOTT & GARTON,2270041:3000004044410050,"32,130.00",Legal Aid Civil Representation
MOJ,LAA,20/10/21,Legal Aid Civil Representation,LEGAL AID FUND,LOCKINGS SOLICITORS,2270049:3000006892220005,"27,923.00",Legal Aid Civil Representation
MOJ,LAA,20/10/21,Legal Aid Civil Representation,LEGAL AID FUND,GRIFFITHS ROBERTSON,2270051:3000003582030037,"37,882.23",Legal Aid Civil Representation
MOJ,LAA,20/10/21,Legal Aid Civil Representation,LEGAL AID FUND,STEPHENS & SCOWN LLP,2270099:3000005465050027,"55,870.06",Legal Aid Civil Representation
MOJ,LAA,20/10/21,Legal Aid Civil Representation,LEGAL AID FUND,LYONS DAVIDSON LTD,2270122:3000001054900011,"33,374.85",Legal Aid Civil Representation
MOJ,LAA,20/10/21,Legal Aid Higher Crime,LEGAL AID FUND,EDWARDS DUTHIE SHAMASH SOLICITORS,2270133:158819904,"52,296.95",Legal Aid Higher Crime
MOJ,LAA,20/10/21,Legal Aid Civil Representation,LEGAL AID FUND,EDWARDS DUTHIE SHAMASH SOLICITORS,2270134:3000007832840009,"30,172.30",Legal Aid Civil Representation
MOJ,LAA,20/10/21,Legal Aid Civil Representation,LEGAL AID FUND,DUNN & BAKER LLP,2270135:3000005449850042,"42,979.16",Legal Aid Civil Representation
MOJ,LAA,20/10/21,Legal Aid Civil Representation,LEGAL AID FUND,MARCHANT HARRIES,2270148:3000006198160015,"26,288.04",Legal Aid Civil Representation
MOJ,LAA,20/10/21,Legal Aid Higher Crime,LEGAL AID FUND,SWEETMAN BURKE & SINKER,2270158:158829544,"29,664.55",Legal Aid Higher Crime
MOJ,LAA,20/10/21,Legal Aid Legal Help,LEGAL AID FUND,WATSON WOODHOUSE LTD,2270278:158872307,"39,311.02",Legal Aid Legal Help
MOJ,LAA,20/10/21,Legal Aid Higher Crime,LEGAL AID FUND,M B LAW LTD,2270284:158820429,"99,719.13",Legal Aid Higher Crime
MOJ,LAA,20/10/21,Legal Aid Civil Representation,LEGAL AID FUND,FOYS SOLICITORS,2270346:3000005928270005,"29,160.59",Legal Aid Civil Representation
MOJ,LAA,20/10/21,Legal Aid Higher Crime,LEGAL AID FUND,ALEXANDER BENNETT,2270421:158838558,"26,893.52",Legal Aid Higher Crime
MOJ,LAA,20/10/21,Legal Aid Civil Representation,LEGAL AID FUND,CASWELL JONES SOLICITORS,2270521:3000007040170016,"25,629.60",Legal Aid Civil Representation
MOJ,LAA,20/10/21,Legal Aid Civil Representation,LEGAL AID FUND,CAVEAT SOLICITORS,2270543:3000004984970032,"34,069.51",Legal Aid Civil Representation
MOJ,LAA,20/10/21,Legal Aid Higher Crime,LEGAL AID FUND,ZACHARIAS A A MIAH,2270582:158865002,"39,996.00",Legal Aid Higher Crime
MOJ,LAA,20/10/21,Legal Aid Higher Crime,LEGAL AID FUND,NEIL K FITZGIBBON,2270585:158864461,"31,536.00",Legal Aid Higher Crime
MOJ,LAA,20/10/21,Legal Aid Higher Crime,LEGAL AID FUND,HENRY W HUGHES,2270603:158864669,"34,398.00",Legal Aid Higher Crime
MOJ,LAA,20/10/21,Legal Aid Higher Crime,LEGAL AID FUND,CARMEL WILDE,2270627:158870555,"59,599.99",Legal Aid Higher Crime
MOJ,LAA,20/10/21,Legal Aid Civil Representation,LEGAL AID FUND,LOUISE A SAPSTEAD,2270702:3000006699310020,"29,652.48",Legal Aid Civil Representation
MOJ,LAA,20/10/21,Legal Aid Civil Representation,LEGAL AID FUND,SWITALSKI'S SOLICITORS LTD,2270785:3000006733040007,"33,063.60",Legal Aid Civil Representation
MOJ,LAA,20/10/21,Legal Aid Civil Representation,LEGAL AID FUND,COPPERSTONE SOLICITORS LTD,2270786:3000005116460012,"25,730.76",Legal Aid Civil Representation
MOJ,LAA,20/10/21,Legal Aid Higher Crime,LEGAL AID FUND,CITY LAW CHAMBERS LTD,2270793:158838847,"41,573.18",Legal Aid Higher Crime
MOJ,LAA,20/10/21,Legal Aid Higher Crime,LEGAL AID FUND,SVS SOLICITORS,2270796:158865357,"41,905.00",Legal Aid Higher Crime
MOJ,LAA,20/10/21,Legal Aid Higher Crime,LEGAL AID FUND,SHAIKH AYUB SOLICITORS,2270816:158818899,"45,001.02",Legal Aid Higher Crime
MOJ,LAA,20/10/21,Legal Aid Higher Crime,LEGAL AID FUND,LAWTONS SOLICITORS LTD,2270833:158837896,"40,218.31",Legal Aid Higher Crime
MOJ,LAA,20/10/21,Legal Aid Higher Crime,LEGAL AID FUND,H P GOWER SOLICITORS,2270834:158865633,"33,099.23",Legal Aid Higher Crime
MOJ,LAA,20/10/21,Legal Aid Civil Representation,LEGAL AID FUND,GREENS SOLICITORS LTD,2270890:3000005551770022,"29,400.86",Legal Aid Civil Representation
MOJ,LAA,20/10/21,Legal Aid Higher Crime,LEGAL AID FUND,MAURICE ANDREWS SOLICITORS,2270893:158818900,"107,574.07",Legal Aid Higher Crime
MOJ,LAA,20/10/21,Legal Aid Civil Representation,LEGAL AID FUND,WOLFERSTANS LLP,2270895:3000005638790041,"44,892.62",Legal Aid Civil Representation
MOJ,LAA,20/10/21,Legal Aid Civil Representation,LEGAL AID FUND,KENNETH BUSH LTD,2270902:3000009099520019,"26,400.00",Legal Aid Civil Representation
MOJ,LAA,20/10/21,Legal Aid Civil Representation,LEGAL AID FUND,AILEEN TALLINTIRE SOLICITORS,2270940:3000005696780023,"36,596.56",Legal Aid Civil Representation
MOJ,LAA,20/10/21,Legal Aid Civil Representation,LEGAL AID FUND,SPICKETTS BATTRICK SOLICITORS,2270947:3000006439300019,"34,012.56",Legal Aid Civil Representation
MOJ,LAA,20/10/21,Legal Aid Civil Representation,LEGAL AID FUND,BRENDAN FLEMING SOLICITORS,2270968:3000003530140029,"34,383.88",Legal Aid Civil Representation
MOJ,LAA,20/10/21,Legal Aid Civil Representation,LEGAL AID FUND,BRENDAN FLEMING SOLICITORS,2270968:3000004796880023,"26,600.26",Legal Aid Civil Representation
MOJ,LAA,20/10/21,Legal Aid Higher Crime,LEGAL AID FUND,J D SPICER ZEB,2270980:158828894,"87,953.91",Legal Aid Higher Crime
MOJ,LAA,20/10/21,Legal Aid Higher Crime,LEGAL AID FUND,COODES LLP,2270995:158829585,"26,051.32",Legal Aid Higher Crime
MOJ,LAA,20/10/21,Legal Aid Civil Representation,LEGAL AID FUND,CARVILL & JOHNSON LTD,2271019:3000004008690025,"66,211.88",Legal Aid Civil Representation
MOJ,LAA,20/10/21,Legal Aid Civil Representation,LEGAL AID FUND,CARVILL & JOHNSON LTD,2271019:3000004418900019,"30,607.48",Legal Aid Civil Representation
MOJ,LAA,20/10/21,Legal Aid Civil Representation,LEGAL AID FUND,MCDONALD KERRIGAN LLP,2271023:3000004246220019,"25,680.86",Legal Aid Civil Representation
MOJ,LAA,20/10/21,Legal Aid Higher Crime,LEGAL AID FUND,TAYLOR ROSE MW SOLICITORS,2271032:158819088,"39,044.26",Legal Aid Higher Crime
MOJ,LAA,20/10/21,Legal Aid Civil Representation,LEGAL AID FUND,SPRING & CO SOLICITORS LTD,2271200:3000007685220016,"25,161.89",Legal Aid Civil Representation
MOJ,LAA,20/10/21,Legal Aid Higher Crime,LEGAL AID FUND,APPLEBY SHAW LTD,2271238:158829706,"60,310.56",Legal Aid Higher Crime
MOJ,LAA,20/10/21,Legal Aid Civil Representation,LEGAL AID FUND,SAMUEL J COE,2271262:3000006699310021,"26,231.04",Legal Aid Civil Representation
MOJ,LAA,20/10/21,Legal Aid Higher Crime,LEGAL AID FUND,WOOLFE & CO SOLICITORS LTD,2271291:158829595,"105,857.75",Legal Aid Higher Crime
MOJ,LAA,20/10/21,Legal Aid Higher Crime,LEGAL AID FUND,CHRISTOB SOLICITORS,2271305:158865227,"28,343.52",Legal Aid Higher Crime
MOJ,LAA,20/10/21,Legal Aid Higher Crime,LEGAL AID FUND,HARWOOD SOLICITORS,2271316:158847066,"25,163.98",Legal Aid Higher Crime
MOJ,LAA,20/10/21,Legal Aid Higher Crime,LEGAL AID FUND,HARWOOD SOLICITORS,2271316:158847067,"67,726.70",Legal Aid Higher Crime
MOJ,LAA,20/10/21,Legal Aid Higher Crime,LEGAL AID FUND,DRUMMOND SOLICITORS LTD,2271317:158865191,"89,048.96",Legal Aid Higher Crime
MOJ,LAA,20/10/21,Legal Aid Higher Crime,LEGAL AID FUND,CARSON KAYE SOLICITORS,2271321:158818736,"57,432.19",Legal Aid Higher Crime
MOJ,LAA,20/10/21,Legal Aid Higher Crime,LEGAL AID FUND,CARSON KAYE SOLICITORS,2271321:158838588,"89,975.11",Legal Aid Higher Crime
MOJ,LAA,20/10/21,Legal Aid Higher Crime,LEGAL AID FUND,M K LAW SOLICITORS LTD,2271364:158838492,"26,444.46",Legal Aid Higher Crime
MOJ,LAA,20/10/21,Legal Aid Civil Representation,LEGAL AID FUND,JEREMY RAWLINGS,2271398:3000005449850039,"47,343.46",Legal Aid Civil Representation
MOJ,LAA,20/10/21,Legal Aid Civil Representation,LEGAL AID FUND,CADI DEWI,2271417:3000006439300018,"27,956.88",Legal Aid Civil Representation
MOJ,LAA,20/10/21,Legal Aid Civil Representation,LEGAL AID FUND,LEONORAH P D SMITH,2271481:3000004984970031,"46,050.66",Legal Aid Civil Representation
MOJ,LAA,20/10/21,Legal Aid Civil Representation,LEGAL AID FUND,LISA BARRACLOUGH,2271486:3000005465050026,"37,219.68",Legal Aid Civil Representation
MOJ,LAA,20/10/21,Legal Aid Civil Representation,LEGAL AID FUND,NAOMI CARPENTER,2271557:3000002446060018,"30,348.00",Legal Aid Civil Representation
MOJ,LAA,20/10/21,Legal Aid Higher Crime,LEGAL AID FUND,NOTU HOON,2271562:158864479,"36,288.00",Legal Aid Higher Crime
MOJ,LAA,20/10/21,Legal Aid Civil Representation,LEGAL AID FUND,VIKRAM SACHDEVA,2271577:3000006477840011,"60,300.00",Legal Aid Civil Representation
MOJ,LAA,20/10/21,Legal Aid Higher Crime,LEGAL AID FUND,MICHAEL A MATHER-LEES QC,2271589:158828134,"28,452.00",Legal Aid Higher Crime
MOJ,LAA,20/10/21,Legal Aid Civil Representation,LEGAL AID FUND,E CATRIN JOHN,2271590:3000006198160016,"31,795.86",Legal Aid Civil Representation
MOJ,LAA,20/10/21,Legal Aid Legal Help,LEGAL AID FUND,SIMPSON MILLAR SOLICITORS LLP,2271611:158862800,"120,091.39",Legal Aid Legal Help
MOJ,LAA,20/10/21,Legal Aid Legal Help,LEGAL AID FUND,SIMPSON MILLAR SOLICITORS LLP,2271611:158862801,"32,148.70",Legal Aid Legal Help
MOJ,LAA,20/10/21,Legal Aid Civil Representation,LEGAL AID FUND,CLARKE WILLMOTT LLP,2271613:3000004494140011,"25,580.83",Legal Aid Civil Representation
MOJ,LAA,20/10/21,Legal Aid Higher Crime,LEGAL AID FUND,ASHMANS SOLICITORS LTD,2271626:158864632,"89,336.88",Legal Aid Higher Crime
MOJ,LAA,20/10/21,Legal Aid Civil Representation,LEGAL AID FUND,CARTWRIGHT KING LTD,2271627:3000007462390013,"25,212.81",Legal Aid Civil Representation
MOJ,LAA,20/10/21,Legal Aid Civil Representation,LEGAL AID FUND,WELLS BURCOMBE LLP,2271635:3000006385490013,"27,809.73",Legal Aid Civil Representation
MOJ,LAA,20/10/21,Legal Aid Higher Crime,LEGAL AID FUND,RUTH BECKER,2271696:158865512,"34,836.00",Legal Aid Higher Crime
MOJ,LAA,20/10/21,Legal Aid Civil Representation,LEGAL AID FUND,JAMES MURRAY SOLICITORS,2271715:3000003962740040,"38,456.83",Legal Aid Civil Representation
MOJ,LAA,20/10/21,Legal Aid Civil Representation,LEGAL AID FUND,COOPER NIMMO LTD,2271716:3000005527020016,"34,775.10",Legal Aid Civil Representation
MOJ,LAA,20/10/21,Legal Aid Civil Representation,LEGAL AID FUND,JAMES MURRAY SOLICITORS,2271771:3000004976540014,"49,337.91",Legal Aid Civil Representation
MOJ,LAA,20/10/21,Legal Aid Civil Representation,LEGAL AID FUND,DUNCAN LEWIS SOLICITORS  LTD,2271775:3000003841370030,"26,062.30",Legal Aid Civil Representation
MOJ,LAA,20/10/21,Legal Aid Higher Crime,LEGAL AID FUND,TAYLOR HALDANE BARLEX LLP,2271789:158828409,"65,128.56",Legal Aid Higher Crime
MOJ,LAA,20/10/21,Legal Aid Higher Crime,LEGAL AID FUND,OLLIERS SOLICITORS LTD,2271792:158865037,"65,528.27",Legal Aid Higher Crime
MOJ,LAA,20/10/21,Legal Aid Civil Representation,LEGAL AID FUND,CAMERON JONES HUSSELL & HOWE,2271812:3000006576910008,"28,843.51",Legal Aid Civil Representation
MOJ,LAA,20/10/21,Legal Aid Civil Representation,LEGAL AID FUND,JACKSON LEES GROUP LTD,2271817:3000005287530033,"29,275.85",Legal Aid Civil Representation
MOJ,LAA,20/10/21,Legal Aid Higher Crime,LEGAL AID FUND,DE MAIDS SOLICITORS & ADVOCATES,2271826:158846955,"93,095.51",Legal Aid Higher Crime
MOJ,LAA,20/10/21,Legal Aid Higher Crime,LEGAL AID FUND,ROBERT LIZAR,2271863:158846306,"89,975.11",Legal Aid Higher Crime
MOJ,LAA,20/10/21,Legal Aid Civil Representation,LEGAL AID FUND,BERKSON FAMILY LAW SOLICITORS LTD,2271876:3000002654790054,"113,339.29",Legal Aid Civil Representation
MOJ,LAA,20/10/21,Legal Aid Legal Help,LEGAL AID FUND,STEPHENSONS SOLICITORS LLP,2271890:158862799,"36,708.00",Legal Aid Legal Help
MOJ,LAA,20/10/21,Legal Aid Higher Crime,LEGAL AID FUND,STEPHENSONS SOLICITORS LLP,2271890:158871395,"76,398.82",Legal Aid Higher Crime
MOJ,LAA,20/10/21,Legal Aid Civil Representation,LEGAL AID FUND,CHILD LAW PARTNERSHIP LTD,2271932:3000004758420032,"28,434.63",Legal Aid Civil Representation
MOJ,LAA,20/10/21,Legal Aid Civil Representation,LEGAL AID FUND,MJC LAW LTD,2271996:3000006022200006,"25,060.04",Legal Aid Civil Representation
MOJ,LAA,20/10/21,Legal Aid Higher Crime,LEGAL AID FUND,IRVINE THANVI NATAS SOLICITORS,2272054:158819749,"74,017.86",Legal Aid Higher Crime
MOJ,LAA,20/10/21,Legal Aid Higher Crime,LEGAL AID FUND,FIONA K MCNEILL,2272133:158828715,"35,652.00",Legal Aid Higher Crime
MOJ,LAA,20/10/21,Legal Aid Higher Crime,LEGAL AID FUND,BERNARD RICHMOND QC,2272155:158865415,"50,724.00",Legal Aid Higher Crime
MOJ,LAA,20/10/21,Legal Aid Higher Crime,LEGAL AID FUND,DAVID N WALBANK,2272171:158825278,"123,200.00",Legal Aid Higher Crime
MOJ,LAA,20/10/21,Legal Aid Higher Crime,LEGAL AID FUND,GARETH P BELLIS,2272174:158871857,"86,400.00",Legal Aid Higher Crime
MOJ,LAA,20/10/21,Legal Aid Civil Representation,LEGAL AID FUND,KATE V BRANIGAN QC,2272254:3000005696780022,"31,621.02",Legal Aid Civil Representation
MOJ,LAA,20/10/21,Legal Aid Civil Representation,LEGAL AID FUND,DAMIAN WOODWARD-CARLTON,2272320:3000005449850041,"34,662.48",Legal Aid Civil Representation
MOJ,LAA,20/10/21,Legal Aid Civil Representation,LEGAL AID FUND,MARTIN G KINGERLEY,2272324:3000013450800003,"26,400.00",Legal Aid Civil Representation
MOJ,LAA,20/10/21,Legal Aid Higher Crime,LEGAL AID FUND,SHAHNAWAZ  Z KHAN,2272358:158871555,"47,360.00",Legal Aid Higher Crime
MOJ,LAA,20/10/21,Legal Aid Civil Representation,LEGAL AID FUND,JULIE E SPARROW,2272364:3000004008690021,"43,329.60",Legal Aid Civil Representation
MOJ,LAA,20/10/21,Legal Aid Civil Representation,LEGAL AID FUND,NICHOLAS W STONOR,2272413:3000004724310026,"52,390.80",Legal Aid Civil Representation
MOJ,LAA,20/10/21,Legal Aid Civil Representation,LEGAL AID FUND,JEREMY P WESTON QC,2272424:3000004298580047,"71,733.60",Legal Aid Civil Representation
MOJ,LAA,20/10/21,Legal Aid Civil Representation,LEGAL AID FUND,CATHERINE L PREEN,2272426:3000005551770023,"32,878.01",Legal Aid Civil Representation
MOJ,LAA,20/10/21,Legal Aid Lower Crime,LEGAL AID FUND,NAEEM MIAN QC,2272428:158842333,"132,249.60",Legal Aid Lower Crime
MOJ,LAA,20/10/21,Legal Aid Civil Representation,LEGAL AID FUND,RASHID & CO SOLICITORS LTD,2272491:3000005723980027,"27,608.55",Legal Aid Civil Representation
MOJ,LAA,20/10/21,Legal Aid Higher Crime,LEGAL AID FUND,DPP LAW LTD,2272500:158844266,"47,269.32",Legal Aid Higher Crime
MOJ,LAA,20/10/21,Legal Aid Higher Crime,LEGAL AID FUND,SALHAN & CO LTD,2272551:158865033,"89,975.11",Legal Aid Higher Crime
MOJ,LAA,20/10/21,Legal Aid Higher Crime,LEGAL AID FUND,STUART MILLER SOLICITORS LTD,2272572:158819159,"89,975.11",Legal Aid Higher Crime
MOJ,LAA,20/10/21,Legal Aid Civil Representation,LEGAL AID FUND,VICKERS & CO,2272595:3000005839560009,"41,891.00",Legal Aid Civil Representation
MOJ,LAA,20/10/21,Legal Aid Civil Representation,LEGAL AID FUND,APPLEBY HOPE & MATTHEWS,2272630:3000004724310025,"41,785.38",Legal Aid Civil Representation
MOJ,LAA,20/10/21,Legal Aid Civil Representation,LEGAL AID FUND,LAWSON & THOMPSON,2272636:3000006397030006,"28,865.16",Legal Aid Civil Representation
MOJ,LAA,20/10/21,Legal Aid Higher Crime,LEGAL AID FUND,CARR & CO,2272643:158819180,"46,430.38",Legal Aid Higher Crime
MOJ,LAA,20/10/21,Legal Aid Civil Representation,LEGAL AID FUND,JI SOLICITORS LTD,2272647:158869799,"27,386.08",Legal Aid Civil Representation
MOJ,LAA,20/10/21,Legal Aid Higher Crime,LEGAL AID FUND,ANDREW STORCH SOLICITORS LTD,2272653:158864761,"54,529.93",Legal Aid Higher Crime
MOJ,LAA,20/10/21,Legal Aid Higher Crime,LEGAL AID FUND,WATSON WOODHOUSE LTD,2272661:158829672,"25,281.59",Legal Aid Higher Crime
MOJ,LAA,20/10/21,Legal Aid Lower Crime,LEGAL AID FUND,WATSON WOODHOUSE LTD,2272661:158836201,"25,983.31",Legal Aid Lower Crime
MOJ,LAA,20/10/21,Legal Aid Higher Crime,LEGAL AID FUND,WATSON WOODHOUSE LTD,2272661:158838518,"89,975.11",Legal Aid Higher Crime
MOJ,LAA,21/10/21,EXP - PURCHASE OF GOODS/SERVICES - OTHER PROFESSIONAL SERVICES - LEGAL SERVICES - THIRD PARTY LEGAL COSTS,Case Mgmt Strategy & Planning,MARSTON HOLDINGS LTD,40179,"78,163.36",Professional services
MOJ,LAA,22/10/21,EXP - PURCHASE OF GOODS/SERVICES - OTHER - Translation / Interpreting Services,CLS Direct,THE LANGUAGE SHOP LTD,609620921,"26,364.39",Translation and interpreting services
MOJ,LAA,25/10/21,EXP - RENTALS UNDER NON-PFI OPERATING LEASES - PLANT & MACHINERY,Property Costs - Newcastle,WESLEYAN ASSURANCE SOCIETY,202100001348,"109,474.50",Property related charges
MOJ,LAA,25/10/21,EXP - PURCHASE OF GOODS/SERVICES - OTHER - Central Funds - Other,Central Funds,RSPCA,M1149994/174093,"51,724.30",Court costs
MOJ,LAA,25/10/21,EXP - PURCHASE OF GOODS/SERVICES - OFFICE RELATED - Reprographics,Centralised Costs,CORPORATE DOCUMENT SERVICES LTD,258837,"60,741.90",Reprographics and printing services
MOJ,LAA,27/10/21,EXP - PURCHASE OF GOODS/SERVICES - OTHER - Central Funds - Other,Central Funds,D BERBRIDGE,M1156517/174237,"29,730.54",Court costs
MOJ,LAA,27/10/21,EXP - MISCELLANEOUS EXPENDITURE - Litigator,Central Funds,GSG LAW LTD,M1110914/174210,"39,017.12",Legal services
MOJ,LAA,27/10/21,Legal Aid Legal Help,LEGAL AID FUND,TWINWOOD LAW PRACTICE LTD,2273056:158931933,"25,295.50",Legal Aid Legal Help
MOJ,LAA,27/10/21,Legal Aid Civil Representation,LEGAL AID FUND,CHILD LAW PARTNERSHIP LTD,2273089:3000006607360011,"28,855.40",Legal Aid Civil Representation
MOJ,LAA,27/10/21,Legal Aid Higher Crime,LEGAL AID FUND,I A LAW,2273134:158924856,"62,865.26",Legal Aid Higher Crime
MOJ,LAA,27/10/21,Legal Aid Lower Crime,LEGAL AID FUND,TAKK & COMPANY (MEDWAY) LTD,2273137:158919790,"25,001.16",Legal Aid Lower Crime
MOJ,LAA,27/10/21,Legal Aid Lower Crime,LEGAL AID FUND,LAWTONS SOLICITORS LTD,2273152:158918750,"35,300.00",Legal Aid Lower Crime
MOJ,LAA,27/10/21,Legal Aid Higher Crime,LEGAL AID FUND,CENTRAL CHAMBERS LAW SOLICITORS LTD,2273155:158874416,"27,314.36",Legal Aid Higher Crime
MOJ,LAA,27/10/21,Legal Aid Lower Crime,LEGAL AID FUND,EVANS HAYES BURNELL SOLICITORS LTD,2273157:158919613,"27,059.67",Legal Aid Lower Crime
MOJ,LAA,27/10/21,Legal Aid Higher Crime,LEGAL AID FUND,SPARTANS LAW LTD,2273163:158925383,"74,218.51",Legal Aid Higher Crime
MOJ,LAA,27/10/21,Legal Aid Higher Crime,LEGAL AID FUND,SPARTANS LAW LTD,2273163:158925595,"25,355.43",Legal Aid Higher Crime
MOJ,LAA,27/10/21,Legal Aid Lower Crime,LEGAL AID FUND,G T STEWART LTD,2273166:158919770,"30,027.48",Legal Aid Lower Crime
MOJ,LAA,27/10/21,Legal Aid Lower Crime,LEGAL AID FUND,GRAHAM & CO SOLICITORS LTD,2273169:158919767,"64,046.25",Legal Aid Lower Crime
MOJ,LAA,27/10/21,Legal Aid Higher Crime,LEGAL AID FUND,BANKS & PARTNERS LTD,2273173:158874102,"54,866.98",Legal Aid Higher Crime
MOJ,LAA,27/10/21,Legal Aid Higher Crime,LEGAL AID FUND,LEWIS NEDAS LAW LTD,2273175:158892298,"105,857.75",Legal Aid Higher Crime
MOJ,LAA,27/10/21,Legal Aid Higher Crime,LEGAL AID FUND,LEWIS NEDAS LAW LTD,2273175:158893173,"57,460.64",Legal Aid Higher Crime
MOJ,LAA,27/10/21,Legal Aid Higher Crime,LEGAL AID FUND,KHER SOLICITORS,2273177:158924846,"107,574.07",Legal Aid Higher Crime
MOJ,LAA,27/10/21,Legal Aid Lower Crime,LEGAL AID FUND,REECE THOMAS WATSON LTD,2273223:158919579,"72,822.68",Legal Aid Lower Crime
MOJ,LAA,27/10/21,Legal Aid Lower Crime,LEGAL AID FUND,INSTALAW,2273232:158919576,"154,990.21",Legal Aid Lower Crime
MOJ,LAA,27/10/21,Legal Aid Lower Crime,LEGAL AID FUND,TAYLOR ROSE MW SOLICITORS,2273244:158919821,"57,305.97",Legal Aid Lower Crime
MOJ,LAA,27/10/21,Legal Aid Lower Crime,LEGAL AID FUND,HINE SOLICITORS,2273257:158919800,"25,621.04",Legal Aid Lower Crime
MOJ,LAA,27/10/21,Legal Aid Higher Crime,LEGAL AID FUND,APPLEBY SHAW LTD,2273258:158874418,"60,310.56",Legal Aid Higher Crime
MOJ,LAA,27/10/21,Legal Aid Lower Crime,LEGAL AID FUND,TAYLOR HALDANE BARLEX LLP,2273261:158919598,"25,374.68",Legal Aid Lower Crime
MOJ,LAA,27/10/21,Legal Aid Legal Help,LEGAL AID FUND,SAUNDERS & PARTNERS LLP,2273266:158918310,"50,001.60",Legal Aid Legal Help
MOJ,LAA,27/10/21,Legal Aid Lower Crime,LEGAL AID FUND,JSP LAW LTD,2273277:158919545,"35,554.03",Legal Aid Lower Crime
MOJ,LAA,27/10/21,Legal Aid Civil Representation,LEGAL AID FUND,COMPASS RESOLUTION LTD,2273301:158919879,"32,981.40",Legal Aid Civil Representation
MOJ,LAA,27/10/21,Legal Aid Higher Crime,LEGAL AID FUND,JAMES T N SCOBIE QC,2273316:158893699,"42,372.00",Legal Aid Higher Crime
MOJ,LAA,27/10/21,Legal Aid Civil Representation,LEGAL AID FUND,JOSEPH LYNCH,2273339:3000005886110022,"36,936.00",Legal Aid Civil Representation
MOJ,LAA,27/10/21,Legal Aid Civil Representation,LEGAL AID FUND,MELANIE C DE FREITAS,2273351:3000008529170012,"26,480.56",Legal Aid Civil Representation
MOJ,LAA,27/10/21,Legal Aid Legal Help,LEGAL AID FUND,BARNES HARRILD & DYER,2273382:158918210,"27,334.57",Legal Aid Legal Help
MOJ,LAA,27/10/21,Legal Aid Lower Crime,LEGAL AID FUND,TAYLOR HALDANE BARLEX LLP,2273402:158919510,"27,336.81",Legal Aid Lower Crime
MOJ,LAA,27/10/21,Legal Aid Lower Crime,LEGAL AID FUND,REEDS SOLICITORS LLP,2273403:158919513,"32,495.04",Legal Aid Lower Crime
MOJ,LAA,27/10/21,Legal Aid Higher Crime,LEGAL AID FUND,JUSTIN A M JARMOLA,2273411:158879124,"47,360.00",Legal Aid Higher Crime
MOJ,LAA,27/10/21,Legal Aid Higher Crime,LEGAL AID FUND,NEWGATE SOLICITORS-ADVOCATE,2273459:158882883,"26,754.00",Legal Aid Higher Crime
MOJ,LAA,27/10/21,Legal Aid Civil Representation,LEGAL AID FUND,RED KITE LAW LLP,2273477:3000008265120012,"25,422.84",Legal Aid Civil Representation
MOJ,LAA,27/10/21,Legal Aid Lower Crime,LEGAL AID FUND,JACKSON LEES GROUP LTD,2273483:158919514,"40,030.47",Legal Aid Lower Crime
MOJ,LAA,27/10/21,Legal Aid Civil Representation,LEGAL AID FUND,PENELOPE A M HOWE,2273488:3000006957500010,"46,148.40",Legal Aid Civil Representation
MOJ,LAA,27/10/21,Legal Aid Civil Representation,LEGAL AID FUND,JOHN C WATERS,2273518:3000007282790004,"28,058.40",Legal Aid Civil Representation
MOJ,LAA,27/10/21,Legal Aid Civil Representation,LEGAL AID FUND,SARA TRUMPER,2273527:3000006520180025,"26,736.46",Legal Aid Civil Representation
MOJ,LAA,27/10/21,Legal Aid Civil Representation,LEGAL AID FUND,KATE M GRIEVE,2273643:3000005813690029,"34,038.97",Legal Aid Civil Representation
MOJ,LAA,27/10/21,Legal Aid Civil Representation,LEGAL AID FUND,TARA VINDIS,2273647:3000004347360030,"42,940.80",Legal Aid Civil Representation
MOJ,LAA,27/10/21,Legal Aid Civil Representation,LEGAL AID FUND,CYRUS R LARIZADEH,2273657:3000006451470024,"28,041.60",Legal Aid Civil Representation
MOJ,LAA,27/10/21,Legal Aid Civil Representation,LEGAL AID FUND,HEATHER L POPLEY,2273684:3000006608500014,"34,214.40",Legal Aid Civil Representation
MOJ,LAA,27/10/21,Legal Aid Higher Crime,LEGAL AID FUND,K A LEGAL PROVIDERS LTD,2273778:158901820,"70,363.87",Legal Aid Higher Crime
MOJ,LAA,27/10/21,Legal Aid Lower Crime,LEGAL AID FUND,M K LAW SOLICITORS LTD,2273783:158919442,"40,000.00",Legal Aid Lower Crime
MOJ,LAA,27/10/21,Legal Aid Lower Crime,LEGAL AID FUND,WANNOPS LLP,2273784:158919500,"31,763.34",Legal Aid Lower Crime
MOJ,LAA,27/10/21,Legal Aid Lower Crime,LEGAL AID FUND,NOBLE SOLICITORS,2273785:158919399,"43,907.16",Legal Aid Lower Crime
MOJ,LAA,27/10/21,Legal Aid Higher Crime,LEGAL AID FUND,HURRAIRAH HARRIS SOLICITORS,2273791:158874617,"45,042.07",Legal Aid Higher Crime
MOJ,LAA,27/10/21,Legal Aid Lower Crime,LEGAL AID FUND,DAVIES & CO SOLICITORS LTD,2273796:158919415,"27,676.49",Legal Aid Lower Crime
MOJ,LAA,27/10/21,Legal Aid Higher Crime,LEGAL AID FUND,HUSSAIN SOLICITORS LTD,2273799:158892619,"63,105.25",Legal Aid Higher Crime
MOJ,LAA,27/10/21,Legal Aid Higher Crime,LEGAL AID FUND,HUSSAIN SOLICITORS LTD,2273799:158925011,"26,869.86",Legal Aid Higher Crime
MOJ,LAA,27/10/21,Legal Aid Lower Crime,LEGAL AID FUND,OLD BAILEY SOLICITORS LTD,2273807:158919431,"50,729.27",Legal Aid Lower Crime
MOJ,LAA,27/10/21,Legal Aid Lower Crime,LEGAL AID FUND,KHAN'S LAW FIRM LTD TA KK & CO,2273809:158919450,"25,132.81",Legal Aid Lower Crime
MOJ,LAA,27/10/21,Legal Aid Higher Crime,LEGAL AID FUND,HARRIS SOLICITORS LTD,2273810:158883556,"29,664.55",Legal Aid Higher Crime
MOJ,LAA,27/10/21,Legal Aid Lower Crime,LEGAL AID FUND,LLM SOLICITORS (LONDON) LTD,2273826:158919474,"25,224.28",Legal Aid Lower Crime
MOJ,LAA,27/10/21,Legal Aid Higher Crime,LEGAL AID FUND,LLM SOLICITORS (LONDON) LTD,2273826:158925401,"52,561.12",Legal Aid Higher Crime
MOJ,LAA,27/10/21,Legal Aid Higher Crime,LEGAL AID FUND,H P GOWER SOLICITORS,2273831:158883097,"42,202.62",Legal Aid Higher Crime
MOJ,LAA,27/10/21,Legal Aid Lower Crime,LEGAL AID FUND,H P GOWER SOLICITORS,2273831:158919465,"81,071.43",Legal Aid Lower Crime
MOJ,LAA,27/10/21,Legal Aid Lower Crime,LEGAL AID FUND,WELCH & CO,2273838:158919396,"25,584.44",Legal Aid Lower Crime
MOJ,LAA,27/10/21,Legal Aid Lower Crime,LEGAL AID FUND,K LEGAL SOLICITORS,2273855:158919479,"25,257.56",Legal Aid Lower Crime
MOJ,LAA,27/10/21,Legal Aid Lower Crime,LEGAL AID FUND,WELLS BURCOMBE LLP,2273859:158919443,"64,540.39",Legal Aid Lower Crime
MOJ,LAA,27/10/21,Legal Aid Lower Crime,LEGAL AID FUND,SUNDIP MURRIA SOLICITORS,2273871:158918724,"29,800.00",Legal Aid Lower Crime
MOJ,LAA,27/10/21,Legal Aid Higher Crime,LEGAL AID FUND,I B B LAW LLP,2273878:158893736,"107,574.07",Legal Aid Higher Crime
MOJ,LAA,27/10/21,Legal Aid Lower Crime,LEGAL AID FUND,I B B LAW LLP,2273878:158918564,"108,700.00",Legal Aid Lower Crime
MOJ,LAA,27/10/21,Legal Aid Lower Crime,LEGAL AID FUND,WAINWRIGHT & CUMMINS LLP,2273879:158919025,"62,395.01",Legal Aid Lower Crime
MOJ,LAA,27/10/21,Legal Aid Legal Help,LEGAL AID FUND,PARAGON LAW LTD,2273886:158917556,"45,000.00",Legal Aid Legal Help
MOJ,LAA,27/10/21,Legal Aid Legal Help,LEGAL AID FUND,MENTAL HEALTH LEGAL REPRESENTATION LTD,2273887:158917979,"25,417.44",Legal Aid Legal Help
MOJ,LAA,27/10/21,Legal Aid Civil Representation,LEGAL AID FUND,GANGAR & CO,2273892:3000004509100008,"30,364.66",Legal Aid Civil Representation
MOJ,LAA,27/10/21,Legal Aid Lower Crime,LEGAL AID FUND,ALBIN & CO LTD,2273899:158919264,"35,620.12",Legal Aid Lower Crime
MOJ,LAA,27/10/21,Legal Aid Lower Crime,LEGAL AID FUND,THE PURKISS PRACTICE,2273900:158932009,"30,400.00",Legal Aid Lower Crime
MOJ,LAA,27/10/21,Legal Aid Higher Crime,LEGAL AID FUND,OBW PERERA LTD,2273901:158893159,"31,190.16",Legal Aid Higher Crime
MOJ,LAA,27/10/21,Legal Aid Lower Crime,LEGAL AID FUND,OBW PERERA LTD,2273901:158918547,"29,000.00",Legal Aid Lower Crime
MOJ,LAA,27/10/21,Legal Aid Higher Crime,LEGAL AID FUND,OBW PERERA LTD,2273901:158925590,"31,644.84",Legal Aid Higher Crime
MOJ,LAA,27/10/21,Legal Aid Civil Representation,LEGAL AID FUND,GLAISYERS LLP,2273914:3000002536760025,"49,211.51",Legal Aid Civil Representation
MOJ,LAA,27/10/21,Legal Aid Lower Crime,LEGAL AID FUND,HOWARD & BYRNE SOLICITORS,2273916:158918623,"50,000.00",Legal Aid Lower Crime
MOJ,LAA,27/10/21,Legal Aid Lower Crime,LEGAL AID FUND,BIRDS SOLICITORS LTD,2273919:158918559,"90,000.00",Legal Aid Lower Crime
MOJ,LAA,27/10/21,Legal Aid Legal Help,LEGAL AID FUND,WOLTON & CO,2273920:158917626,"25,617.25",Legal Aid Legal Help
MOJ,LAA,27/10/21,Legal Aid Lower Crime,LEGAL AID FUND,SMITH PARTNERSHIP,2273927:158918538,"34,400.00",Legal Aid Lower Crime
MOJ,LAA,27/10/21,Legal Aid Lower Crime,LEGAL AID FUND,GWB HARTHILLS LLP,2273936:158919112,"69,542.29",Legal Aid Lower Crime
MOJ,LAA,27/10/21,Legal Aid Legal Help,LEGAL AID FUND,HOWE & CO,2273937:158917881,"30,295.11",Legal Aid Legal Help
MOJ,LAA,27/10/21,Legal Aid Lower Crime,LEGAL AID FUND,BLACKWELLS SOLICITORS LTD,2273938:158918626,"29,700.00",Legal Aid Lower Crime
MOJ,LAA,27/10/21,Legal Aid Legal Help,LEGAL AID FUND,DAVID GRAY LLP,2273942:158917962,"37,482.11",Legal Aid Legal Help
MOJ,LAA,27/10/21,Legal Aid Lower Crime,LEGAL AID FUND,ABV SOLICITORS,2273947:158918566,"79,800.00",Legal Aid Lower Crime
MOJ,LAA,27/10/21,Legal Aid Legal Help,LEGAL AID FUND,KIRKLEES LAW CENTRE,2273950:158918092,"27,421.27",Legal Aid Legal Help
MOJ,LAA,27/10/21,Legal Aid Lower Crime,LEGAL AID FUND,ROY FOREMAN & CO SOLICITORS,2273969:158918629,"27,000.00",Legal Aid Lower Crime
MOJ,LAA,27/10/21,Legal Aid Legal Help,LEGAL AID FUND,WILSON SOLICITORS LLP,2273977:158915799,"98,000.00",Legal Aid Legal Help
MOJ,LAA,27/10/21,Legal Aid Legal Help,LEGAL AID FUND,WILSON SOLICITORS LLP,2273977:158915800,"33,044.43",Legal Aid Legal Help
MOJ,LAA,27/10/21,Legal Aid Lower Crime,LEGAL AID FUND,SHELLEY & CO,2273981:158918906,"30,307.60",Legal Aid Lower Crime
MOJ,LAA,27/10/21,Legal Aid Higher Crime,LEGAL AID FUND,PURCELL PARKER LTD,2273986:158902323,"82,294.22",Legal Aid Higher Crime
MOJ,LAA,27/10/21,Legal Aid Lower Crime,LEGAL AID FUND,PURCELL PARKER LTD,2273986:158918713,"79,000.00",Legal Aid Lower Crime
MOJ,LAA,27/10/21,Legal Aid Lower Crime,LEGAL AID FUND,RILEY HAYES & CO SOLICITORS LTD,2273987:158919367,"31,951.88",Legal Aid Lower Crime
MOJ,LAA,27/10/21,Legal Aid Lower Crime,LEGAL AID FUND,TRANTERS SOLICITORS LTD,2273993:158918658,"41,000.00",Legal Aid Lower Crime
MOJ,LAA,27/10/21,Legal Aid Lower Crime,LEGAL AID FUND,COOMBER RICH LTD,2273994:158918678,"28,000.00",Legal Aid Lower Crime
MOJ,LAA,27/10/21,Legal Aid Lower Crime,LEGAL AID FUND,STEPHEN RIMMER LLP,2273995:158918668,"26,000.00",Legal Aid Lower Crime
MOJ,LAA,27/10/21,Legal Aid Civil Representation,LEGAL AID FUND,ROBINSONS SOLICITORS.,2273996:3000006180870024,"27,047.64",Legal Aid Civil Representation
MOJ,LAA,27/10/21,Legal Aid Civil Representation,LEGAL AID FUND,ROBINSONS SOLICITORS.,2273996:3000006943020012,"33,850.26",Legal Aid Civil Representation
MOJ,LAA,27/10/21,Legal Aid Civil Representation,LEGAL AID FUND,CHILD LAW PARTNERSHIP LTD,2274004:3000005907140009,"25,453.20",Legal Aid Civil Representation
MOJ,LAA,27/10/21,Legal Aid Civil Representation,LEGAL AID FUND,CHILD LAW PARTNERSHIP LTD,2274004:3000006531240005,"36,010.55",Legal Aid Civil Representation
MOJ,LAA,27/10/21,Legal Aid Lower Crime,LEGAL AID FUND,HOWELL HYLTON LTD,2274005:158919272,"31,796.95",Legal Aid Lower Crime
MOJ,LAA,27/10/21,Legal Aid Higher Crime,LEGAL AID FUND,DEVONALD GRIFFITHS JOHN,2274006:158875243,"37,352.15",Legal Aid Higher Crime
MOJ,LAA,27/10/21,Legal Aid Lower Crime,LEGAL AID FUND,DEVONALD GRIFFITHS JOHN,2274006:158918786,"47,766.94",Legal Aid Lower Crime
MOJ,LAA,27/10/21,Legal Aid Higher Crime,LEGAL AID FUND,DEVONALD GRIFFITHS JOHN,2274006:158925245,"37,352.15",Legal Aid Higher Crime
MOJ,LAA,27/10/21,Legal Aid Lower Crime,LEGAL AID FUND,BURTON COPELAND LLP,2274025:158919209,"37,437.57",Legal Aid Lower Crime
MOJ,LAA,27/10/21,Legal Aid Legal Help,LEGAL AID FUND,ELDER RAHIMI LIMITED,2274028:158917885,"31,840.46",Legal Aid Legal Help
MOJ,LAA,27/10/21,Legal Aid Civil Representation,LEGAL AID FUND,HIBBERTS LLP,2274041:3000003537100029,"57,802.32",Legal Aid Civil Representation
MOJ,LAA,27/10/21,Legal Aid Lower Crime,LEGAL AID FUND,DALTON HOLMES GRAY,2274048:158919007,"57,268.45",Legal Aid Lower Crime
MOJ,LAA,27/10/21,Legal Aid Higher Crime,LEGAL AID FUND,SHEARMAN BOWEN & CO,2274054:158925568,"53,574.05",Legal Aid Higher Crime
MOJ,LAA,27/10/21,Legal Aid Lower Crime,LEGAL AID FUND,GEOFFREY FORRESTER & CO,2274068:158918599,"33,800.00",Legal Aid Lower Crime
MOJ,LAA,27/10/21,Legal Aid Lower Crime,LEGAL AID FUND,WILLIAMSONS SOLICITORS LTD,2274073:158918632,"38,500.00",Legal Aid Lower Crime
MOJ,LAA,27/10/21,Legal Aid Civil Representation,LEGAL AID FUND,EATON SMITH LLP,2274076:3000005711870019,"28,071.57",Legal Aid Civil Representation
MOJ,LAA,27/10/21,Legal Aid Lower Crime,LEGAL AID FUND,CARR & CO,2274078:158918624,"42,300.00",Legal Aid Lower Crime
MOJ,LAA,27/10/21,Legal Aid Lower Crime,LEGAL AID FUND,TAIT FARRIER GRAHAM LLP,2274087:158918606,"26,000.00",Legal Aid Lower Crime
MOJ,LAA,27/10/21,Legal Aid Lower Crime,LEGAL AID FUND,HEWITTS SOLICITORS,2274100:158919057,"26,330.35",Legal Aid Lower Crime
MOJ,LAA,27/10/21,Legal Aid Lower Crime,LEGAL AID FUND,MICHAEL PURDON,2274107:158919080,"31,652.69",Legal Aid Lower Crime
MOJ,LAA,27/10/21,Legal Aid Lower Crime,LEGAL AID FUND,YARWOOD & STUBLEY,2274109:158918594,"28,900.00",Legal Aid Lower Crime
MOJ,LAA,27/10/21,Legal Aid Lower Crime,LEGAL AID FUND,WATSON WOODHOUSE LTD,2274110:158919070,"27,726.13",Legal Aid Lower Crime
MOJ,LAA,27/10/21,Legal Aid Lower Crime,LEGAL AID FUND,WATSON WOODHOUSE LTD,2274112:158918593,"62,300.00",Legal Aid Lower Crime
MOJ,LAA,27/10/21,Legal Aid Higher Crime,LEGAL AID FUND,WATSON WOODHOUSE LTD,2274112:158931913,"55,422.91",Legal Aid Higher Crime
MOJ,LAA,27/10/21,Legal Aid Lower Crime,LEGAL AID FUND,TUCKERS SOLICITORS LLP,2274118:158918657,"115,200.00",Legal Aid Lower Crime
MOJ,LAA,27/10/21,Legal Aid Lower Crime,LEGAL AID FUND,TUCKERS SOLICITORS LLP,2274119:158918577,"189,000.00",Legal Aid Lower Crime
MOJ,LAA,27/10/21,Legal Aid Lower Crime,LEGAL AID FUND,TUCKERS SOLICITORS LLP,2274120:158918714,"25,800.00",Legal Aid Lower Crime
MOJ,LAA,27/10/21,Legal Aid Lower Crime,LEGAL AID FUND,STUART MILLER SOLICITORS LTD,2274121:158918998,"78,665.84",Legal Aid Lower Crime
MOJ,LAA,27/10/21,Legal Aid Higher Crime,LEGAL AID FUND,STUART MILLER SOLICITORS LTD,2274121:158924773,"38,149.78",Legal Aid Higher Crime
MOJ,LAA,27/10/21,Legal Aid Higher Crime,LEGAL AID FUND,STUART MILLER SOLICITORS LTD,2274121:158924987,"45,614.48",Legal Aid Higher Crime
MOJ,LAA,27/10/21,Legal Aid Higher Crime,LEGAL AID FUND,FDR LAW,2274123:158883665,"54,598.00",Legal Aid Higher Crime
MOJ,LAA,27/10/21,Legal Aid Lower Crime,LEGAL AID FUND,HORSMAN SOLICITORS LTD,2274125:158919225,"39,922.51",Legal Aid Lower Crime
MOJ,LAA,27/10/21,Legal Aid Legal Help,LEGAL AID FUND,SOUTHERNS SOLICITORS LTD,2274127:158917915,"33,317.76",Legal Aid Legal Help
MOJ,LAA,27/10/21,Legal Aid Lower Crime,LEGAL AID FUND,SOUTHERNS SOLICITORS LTD,2274127:158919187,"36,010.30",Legal Aid Lower Crime
MOJ,LAA,27/10/21,Legal Aid Lower Crime,LEGAL AID FUND,ROSS SOLICITORS LTD,2274161:158918696,"39,500.00",Legal Aid Lower Crime
MOJ,LAA,27/10/21,Legal Aid Lower Crime,LEGAL AID FUND,DEVON DEFENCE SOLICITORS & ADVOCATES,2274176:158919278,"31,655.42",Legal Aid Lower Crime
MOJ,LAA,27/10/21,Legal Aid Lower Crime,LEGAL AID FUND,BOBBETTS MACKAN,2274177:158919294,"27,664.50",Legal Aid Lower Crime
MOJ,LAA,27/10/21,Legal Aid Lower Crime,LEGAL AID FUND,KELLYS,2274188:158919234,"31,092.29",Legal Aid Lower Crime
MOJ,LAA,27/10/21,Legal Aid Civil Representation,LEGAL AID FUND,LYONS DAVIDSON LTD,2274221:3000002733610024,"50,356.63",Legal Aid Civil Representation
MOJ,LAA,27/10/21,Legal Aid Lower Crime,LEGAL AID FUND,RENSHAW DERRICK & CO,2274223:158919274,"45,078.30",Legal Aid Lower Crime
MOJ,LAA,27/10/21,Legal Aid Legal Help,LEGAL AID FUND,GLEDHILL GILL SOLICITORS,2274225:158917634,"59,000.71",Legal Aid Legal Help
MOJ,LAA,27/10/21,Legal Aid Lower Crime,LEGAL AID FUND,WOOLLCOMBE YONGE LLP,2274227:158919281,"29,859.36",Legal Aid Lower Crime
MOJ,LAA,27/10/21,Legal Aid Lower Crime,LEGAL AID FUND,GOMER WILLIAMS,2274243:158918780,"42,539.77",Legal Aid Lower Crime
MOJ,LAA,27/10/21,Legal Aid Legal Help,LEGAL AID FUND,CONFREYS,2274244:158917717,"38,070.00",Legal Aid Legal Help
MOJ,LAA,27/10/21,Legal Aid Lower Crime,LEGAL AID FUND,WANNOPS LLP,2274273:158919858,"37,205.33",Legal Aid Lower Crime
MOJ,LAA,27/10/21,Legal Aid Legal Help,LEGAL AID FUND,SHAWSTONE ASSOCIATES LTD,2274365:158918407,"28,218.07",Legal Aid Legal Help
MOJ,LAA,27/10/21,Legal Aid Legal Help,LEGAL AID FUND,ABBOTTS MARTIN,2274409:158918418,"26,338.80",Legal Aid Legal Help
MOJ,LAA,27/10/21,Legal Aid Higher Crime,LEGAL AID FUND,PACE SOLICITORS,2274418:158874094,"89,975.11",Legal Aid Higher Crime
MOJ,LAA,27/10/21,Legal Aid Lower Crime,LEGAL AID FUND,MORGAN HAS SOLICITORS,2274453:158919825,"27,461.90",Legal Aid Lower Crime
MOJ,LAA,27/10/21,Legal Aid Lower Crime,LEGAL AID FUND,QUALITYSOLICITORS KNIGHT POLSON,2274533:158918747,"47,900.00",Legal Aid Lower Crime
MOJ,LAA,27/10/21,Legal Aid Lower Crime,LEGAL AID FUND,THE JOHNSON PARTNERSHIP,2274597:158919575,"46,673.31",Legal Aid Lower Crime
MOJ,LAA,27/10/21,Legal Aid Lower Crime,LEGAL AID FUND,REEDS SOLICITORS LLP,2274608:158919600,"25,862.59",Legal Aid Lower Crime
MOJ,LAA,27/10/21,Legal Aid Lower Crime,LEGAL AID FUND,IRVINE THANVI NATAS SOLICITORS,2274616:158919622,"27,576.45",Legal Aid Lower Crime
MOJ,LAA,27/10/21,Legal Aid Legal Help,LEGAL AID FUND,WILSON SOLICITORS LLP,2274635:158918259,"50,456.51",Legal Aid Legal Help
MOJ,LAA,27/10/21,Legal Aid Legal Help,LEGAL AID FUND,FISHER JONES GREENWOOD LLP,2274653:158918222,"26,252.27",Legal Aid Legal Help
MOJ,LAA,27/10/21,Legal Aid Civil Representation,LEGAL AID FUND,MAKIN DIXON SOLICITORS LTD,2274656:3000007935330011,"25,331.04",Legal Aid Civil Representation
MOJ,LAA,27/10/21,Legal Aid Civil Representation,LEGAL AID FUND,MAKIN DIXON SOLICITORS LTD,2274657:3000005490550051,"32,115.27",Legal Aid Civil Representation
MOJ,LAA,27/10/21,Legal Aid Higher Crime,LEGAL AID FUND,CANTARIS LOCKE SOLICITORS,2274665:158893482,"58,042.99",Legal Aid Higher Crime
MOJ,LAA,27/10/21,Legal Aid Legal Help,LEGAL AID FUND,PARKER RHODES HICKMOTTS,2274686:158918248,"41,543.88",Legal Aid Legal Help
MOJ,LAA,27/10/21,Legal Aid Civil Representation,LEGAL AID FUND,CJCH SOLICITORS,2274712:3000006668170013,"41,950.28",Legal Aid Civil Representation
MOJ,LAA,27/10/21,Legal Aid Lower Crime,LEGAL AID FUND,M K LAW SOLICITORS LTD,2274719:158919597,"28,500.00",Legal Aid Lower Crime
MOJ,LAA,27/10/21,Legal Aid Higher Crime,LEGAL AID FUND,G T STEWART LTD,2274730:158892646,"107,574.07",Legal Aid Higher Crime
MOJ,LAA,27/10/21,Legal Aid Legal Help,LEGAL AID FUND,G T STEWART LTD,2274730:158918174,"30,278.34",Legal Aid Legal Help
MOJ,LAA,27/10/21,Legal Aid Civil Representation,LEGAL AID FUND,WILLIAMSONS SOLICITORS LTD,2274733:3000005549110030,"60,360.23",Legal Aid Civil Representation
MOJ,LAA,27/10/21,Legal Aid Higher Crime,LEGAL AID FUND,NATIONAL LEGAL SERVICE LTD,2274737:158883003,"88,033.87",Legal Aid Higher Crime
MOJ,LAA,27/10/21,Legal Aid Lower Crime,LEGAL AID FUND,NATIONAL LEGAL SERVICE LTD,2274737:158919534,"51,134.97",Legal Aid Lower Crime
MOJ,LAA,27/10/21,Legal Aid Higher Crime,LEGAL AID FUND,CJCH SOLICITORS,2274755:158875154,"37,379.15",Legal Aid Higher Crime
MOJ,LAA,27/10/21,Legal Aid Lower Crime,LEGAL AID FUND,T S LAW LTD,2274761:158918741,"28,000.00",Legal Aid Lower Crime
MOJ,LAA,27/10/21,Legal Aid Lower Crime,LEGAL AID FUND,DEVONALD GRIFFITHS JOHN,2274771:158919515,"69,994.14",Legal Aid Lower Crime
MOJ,LAA,27/10/21,Legal Aid Lower Crime,LEGAL AID FUND,CONNOR ROSS-BROWN SOLICITORS,2274794:158918743,"35,000.00",Legal Aid Lower Crime
MOJ,LAA,27/10/21,Legal Aid Higher Crime,LEGAL AID FUND,GUL NAWAZ HUSSAIN QC,2274841:158892806,"52,068.00",Legal Aid Higher Crime
MOJ,LAA,27/10/21,Legal Aid Civil Representation,LEGAL AID FUND,LUCY E LEADER,2274880:3000006668170015,"49,981.38",Legal Aid Civil Representation
MOJ,LAA,27/10/21,Legal Aid Higher Crime,LEGAL AID FUND,EDWARD J MOSS,2274883:158925875,"26,034.00",Legal Aid Higher Crime
MOJ,LAA,27/10/21,Legal Aid Higher Crime,LEGAL AID FUND,SIMON P SPENCE QC,2274902:158926049,"27,060.00",Legal Aid Higher Crime
MOJ,LAA,27/10/21,Legal Aid Civil Representation,LEGAL AID FUND,LORNA G MEYER QC,2274919:3000006608500013,"34,927.20",Legal Aid Civil Representation
MOJ,LAA,27/10/21,Legal Aid Civil Representation,LEGAL AID FUND,TIMOTHY G DONNELLY,2274989:3000006438220021,"33,961.65",Legal Aid Civil Representation
MOJ,LAA,27/10/21,Legal Aid Higher Crime,LEGAL AID FUND,DAVID CLAXTON,2274994:158881352,"162,476.34",Legal Aid Higher Crime
MOJ,LAA,27/10/21,Legal Aid Higher Crime,LEGAL AID FUND,KARIM S KHALIL QC,2275083:158874686,"29,088.00",Legal Aid Higher Crime
MOJ,LAA,27/10/21,Legal Aid Legal Help,LEGAL AID FUND,LEI DAT & BAIG SOLICITORS LTD,2275092:158918146,"26,879.85",Legal Aid Legal Help
MOJ,LAA,27/10/21,Legal Aid Legal Help,LEGAL AID FUND,BHT SUSSEX LTD,2275101:158918131,"31,450.19",Legal Aid Legal Help
MOJ,LAA,27/10/21,Legal Aid Civil Representation,LEGAL AID FUND,NATIONAL FAMILY MEDIATION,2275107:158919910,"36,561.60",Legal Aid Civil Representation
MOJ,LAA,27/10/21,Legal Aid Legal Help,LEGAL AID FUND,HALLIDAY REEVES SOLICITORS,2275139:158918125,"39,990.44",Legal Aid Legal Help
MOJ,LAA,27/10/21,Legal Aid Higher Crime,LEGAL AID FUND,ASHMANS SOLICITORS LTD,2275148:158873687,"29,664.55",Legal Aid Higher Crime
MOJ,LAA,27/10/21,Legal Aid Legal Help,LEGAL AID FUND,KESAR & CO SOLICITORS,2275153:158918268,"55,171.47",Legal Aid Legal Help
MOJ,LAA,27/10/21,Legal Aid Lower Crime,LEGAL AID FUND,KESAR & CO SOLICITORS,2275153:158919481,"65,308.88",Legal Aid Lower Crime
MOJ,LAA,27/10/21,Legal Aid Lower Crime,LEGAL AID FUND,CARRINGTONS SOLICITORS,2275178:158918830,"165,172.05",Legal Aid Lower Crime
MOJ,LAA,27/10/21,Legal Aid Lower Crime,LEGAL AID FUND,BULLIVANT LAW LTD,2275180:158918555,"27,300.00",Legal Aid Lower Crime
MOJ,LAA,27/10/21,Legal Aid Legal Help,LEGAL AID FUND,AMAN SOLICITORS ADVOCATES(LONDON) LTD,2275184:158917844,"28,361.13",Legal Aid Legal Help
MOJ,LAA,27/10/21,Legal Aid Legal Help,LEGAL AID FUND,BRAITCH SOLICITORS (RB SOLICITORS),2275189:158917595,"35,177.15",Legal Aid Legal Help
MOJ,LAA,27/10/21,Legal Aid Civil Representation,LEGAL AID FUND,LEGAL SERVICES FOR CHILDREN,2275195:3000006759130015,"28,066.33",Legal Aid Civil Representation
MOJ,LAA,27/10/21,Legal Aid Civil Representation,LEGAL AID FUND,BURRELL JENKINS SOLICITORS,2275197:3000004523290021,"37,064.28",Legal Aid Civil Representation
MOJ,LAA,27/10/21,Legal Aid Lower Crime,LEGAL AID FUND,EBR ATTRIDGE LLP,2275203:158918933,"37,900.79",Legal Aid Lower Crime
MOJ,LAA,27/10/21,Legal Aid Higher Crime,LEGAL AID FUND,EBR ATTRIDGE LLP,2275204:158901565,"46,406.28",Legal Aid Higher Crime
MOJ,LAA,27/10/21,Legal Aid Lower Crime,LEGAL AID FUND,EBR ATTRIDGE LLP,2275204:158918930,"32,706.08",Legal Aid Lower Crime
MOJ,LAA,27/10/21,Legal Aid Lower Crime,LEGAL AID FUND,G T STEWART LTD,2275221:158919013,"32,190.14",Legal Aid Lower Crime
MOJ,LAA,27/10/21,Legal Aid Lower Crime,LEGAL AID FUND,LHD SOLICITORS LTD,2275222:158918638,"36,300.00",Legal Aid Lower Crime
MOJ,LAA,27/10/21,Legal Aid Higher Crime,LEGAL AID FUND,CRIMINAL DEFENCE SOLICITORS,2275233:158883250,"26,645.28",Legal Aid Higher Crime
MOJ,LAA,27/10/21,Legal Aid Lower Crime,LEGAL AID FUND,BELMORES SOLICITORS LTD,2275239:158918878,"29,434.96",Legal Aid Lower Crime
MOJ,LAA,27/10/21,Legal Aid Lower Crime,LEGAL AID FUND,CRIMINAL DEFENCE ASSOCIATES LTD,2275268:158918542,"26,000.00",Legal Aid Lower Crime
MOJ,LAA,27/10/21,Legal Aid Lower Crime,LEGAL AID FUND,DRISCOLL YOUNG SOLICITORS LTD,2275273:158918770,"26,631.96",Legal Aid Lower Crime
MOJ,LAA,27/10/21,Legal Aid Higher Crime,LEGAL AID FUND,TAYLOR HALDANE BARLEX LLP,2275276:158926041,"32,342.02",Legal Aid Higher Crime
MOJ,LAA,27/10/21,Legal Aid Higher Crime,LEGAL AID FUND,BIRNBERG PEIRCE LTD,2275277:158875091,"39,692.92",Legal Aid Higher Crime
MOJ,LAA,27/10/21,Legal Aid Lower Crime,LEGAL AID FUND,BAINS SOLICITORS,2275284:158918824,"31,354.47",Legal Aid Lower Crime
MOJ,LAA,27/10/21,Legal Aid Lower Crime,LEGAL AID FUND,BAILEY NICHOLSON GRAYSON,2275285:158918553,"62,000.00",Legal Aid Lower Crime
MOJ,LAA,27/10/21,Legal Aid Lower Crime,LEGAL AID FUND,GHP LEGAL,2275288:158918522,"71,800.00",Legal Aid Lower Crime
MOJ,LAA,27/10/21,Legal Aid Higher Crime,LEGAL AID FUND,FARADAYS SOLICITORS LTD,2275294:158925653,"72,744.82",Legal Aid Higher Crime
MOJ,LAA,27/10/21,Legal Aid Legal Help,LEGAL AID FUND,SOUTHWARK LAW CENTRE,2275295:158918081,"26,185.39",Legal Aid Legal Help
MOJ,LAA,27/10/21,Legal Aid Legal Help,LEGAL AID FUND,ISLINGTON LAW CENTRE,2275298:158918104,"32,549.86",Legal Aid Legal Help
MOJ,LAA,27/10/21,Legal Aid Lower Crime,LEGAL AID FUND,QAMAR SOLICITORS LLP,2275312:158919123,"26,132.49",Legal Aid Lower Crime
MOJ,LAA,27/10/21,Legal Aid Higher Crime,LEGAL AID FUND,BAL DHALIWAL SOLICITORS,2275313:158874175,"100,521.95",Legal Aid Higher Crime
MOJ,LAA,27/10/21,Legal Aid Lower Crime,LEGAL AID FUND,BAL DHALIWAL SOLICITORS,2275313:158918908,"36,035.59",Legal Aid Lower Crime
MOJ,LAA,27/10/21,Legal Aid Legal Help,LEGAL AID FUND,BINDMANS LLP,2275326:158917864,"29,976.81",Legal Aid Legal Help
MOJ,LAA,27/10/21,Legal Aid Civil Representation,LEGAL AID FUND,HALL SMITH WHITTINGHAM LLP,2275332:3000005763710036,"25,840.93",Legal Aid Civil Representation
MOJ,LAA,27/10/21,Legal Aid Lower Crime,LEGAL AID FUND,FORBES SOLICITORS,2275335:158918647,"34,900.00",Legal Aid Lower Crime
MOJ,LAA,27/10/21,Legal Aid Lower Crime,LEGAL AID FUND,FORBES SOLICITORS,2275336:158918646,"47,900.00",Legal Aid Lower Crime
MOJ,LAA,27/10/21,Legal Aid Higher Crime,LEGAL AID FUND,CUNNINGHAMS LYTHGOE CAPLIN LTD,2275339:158884188,"29,664.55",Legal Aid Higher Crime
MOJ,LAA,27/10/21,Legal Aid Lower Crime,LEGAL AID FUND,T S LAW LTD,2275346:158918571,"28,000.00",Legal Aid Lower Crime
MOJ,LAA,27/10/21,Legal Aid Higher Crime,LEGAL AID FUND,STEPHEN BURDON SOLICITORS,2275349:158883456,"42,485.15",Legal Aid Higher Crime
MOJ,LAA,27/10/21,Legal Aid Lower Crime,LEGAL AID FUND,BELL LAMB & JOYNSON,2275357:158918662,"26,700.00",Legal Aid Lower Crime
MOJ,LAA,27/10/21,Legal Aid Higher Crime,LEGAL AID FUND,SILVERSMITHS LLP,2275360:158873905,"29,664.55",Legal Aid Higher Crime
MOJ,LAA,27/10/21,Legal Aid Civil Representation,LEGAL AID FUND,TAYLOR & EMMET SOLICITORS LLP,2275374:3000004409100059,"29,032.12",Legal Aid Civil Representation
MOJ,LAA,27/10/21,Legal Aid Legal Help,LEGAL AID FUND,SIMPSON MILLAR SOLICITORS LLP,2275378:158917820,"52,157.02",Legal Aid Legal Help
MOJ,LAA,27/10/21,Legal Aid Lower Crime,LEGAL AID FUND,HOWELLS LLP,2275390:158918615,"32,200.00",Legal Aid Lower Crime
MOJ,LAA,27/10/21,Legal Aid Civil Representation,LEGAL AID FUND,SWITALSKI'S SOLICITORS LTD,2275393:3000004515980053,"37,605.50",Legal Aid Civil Representation
MOJ,LAA,27/10/21,Legal Aid Lower Crime,LEGAL AID FUND,HENRY HYAMS LTD,2275401:158919131,"43,754.87",Legal Aid Lower Crime
MOJ,LAA,27/10/21,Legal Aid Civil Representation,LEGAL AID FUND,CROCKETT LIMITED TA CROCKETT & CO SOLICITORS,2275405:3000005366860033,"46,694.95",Legal Aid Civil Representation
MOJ,LAA,27/10/21,Legal Aid Lower Crime,LEGAL AID FUND,VCW LAW LTD,2275410:158919066,"36,744.05",Legal Aid Lower Crime
MOJ,LAA,27/10/21,Legal Aid Lower Crime,LEGAL AID FUND,HAY & KILNER LLP,2275422:158919077,"26,681.85",Legal Aid Lower Crime
MOJ,LAA,27/10/21,Legal Aid Lower Crime,LEGAL AID FUND,TILLY BAILEY & IRVINE LLP,2275426:158918603,"30,400.00",Legal Aid Lower Crime
MOJ,LAA,27/10/21,Legal Aid Higher Crime,LEGAL AID FUND,JOSEPH HILL & CO,2275452:158874187,"107,970.13",Legal Aid Higher Crime
MOJ,LAA,27/10/21,Legal Aid Lower Crime,LEGAL AID FUND,LAWRENCE & CO SOLICITORS CDS LLP,2275453:158918578,"56,200.00",Legal Aid Lower Crime
MOJ,LAA,27/10/21,Legal Aid Civil Representation,LEGAL AID FUND,LOCKINGS SOLICITORS,2275455:3000006154490018,"27,499.05",Legal Aid Civil Representation
MOJ,LAA,27/10/21,Legal Aid Lower Crime,LEGAL AID FUND,DAVIES & JONES SOLICITORS,2275461:158918519,"25,500.00",Legal Aid Lower Crime
MOJ,LAA,27/10/21,Legal Aid Civil Representation,LEGAL AID FUND,ROBERTSONS LEGAL LTD,2275470:3000006359540008,"48,799.92",Legal Aid Civil Representation
MOJ,LAA,27/10/21,Legal Aid Lower Crime,LEGAL AID FUND,MESSRS WATERFORDS SOLICITORS,2275480:158918972,"37,780.87",Legal Aid Lower Crime
MOJ,LAA,27/10/21,Legal Aid Lower Crime,LEGAL AID FUND,TURNOCKS DEFENCE SOLICITORS LTD,2275483:158919339,"42,835.64",Legal Aid Lower Crime
MOJ,LAA,27/10/21,Legal Aid Higher Crime,LEGAL AID FUND,HODGE JONES & ALLEN SOLICITORS LTD,2275505:158873883,"100,408.50",Legal Aid Higher Crime
MOJ,LAA,27/10/21,Legal Aid Legal Help,LEGAL AID FUND,HODGE JONES & ALLEN SOLICITORS LTD,2275505:158917863,"74,139.32",Legal Aid Legal Help
MOJ,LAA,27/10/21,Legal Aid Lower Crime,LEGAL AID FUND,HODGE JONES & ALLEN SOLICITORS LTD,2275505:158918996,"88,564.16",Legal Aid Lower Crime
MOJ,LAA,27/10/21,Legal Aid Lower Crime,LEGAL AID FUND,J D SPICER ZEB,2275507:158918954,"87,737.33",Legal Aid Lower Crime
MOJ,LAA,27/10/21,Legal Aid Lower Crime,LEGAL AID FUND,POWELL SPENCER AND PARTNERS,2275508:158918556,"35,100.00",Legal Aid Lower Crime
MOJ,LAA,27/10/21,Legal Aid Lower Crime,LEGAL AID FUND,TAYLOR ROSE MW SOLICITORS,2275535:158918943,"30,315.20",Legal Aid Lower Crime
MOJ,LAA,27/10/21,Legal Aid Legal Help,LEGAL AID FUND,BARNES HARRILD & DYER,2275545:158917840,"55,956.62",Legal Aid Legal Help
MOJ,LAA,27/10/21,Legal Aid Civil Representation,LEGAL AID FUND,HUMFRYS & SYMONDS LTD,2275548:3000003839960018,"52,996.25",Legal Aid Civil Representation
MOJ,LAA,27/10/21,Legal Aid Lower Crime,LEGAL AID FUND,BREYDONS SOLICITORS LTD,2275618:158919836,"36,004.51",Legal Aid Lower Crime
MOJ,LAA,27/10/21,Legal Aid Civil Representation,LEGAL AID FUND,SAMUEL C PROUT,2275720:3000004789530027,"39,916.80",Legal Aid Civil Representation
MOJ,LAA,27/10/21,Legal Aid Civil Representation,LEGAL AID FUND,SARA A CHALK,2275748:3000007039160004,"26,044.87",Legal Aid Civil Representation
MOJ,LAA,27/10/21,Legal Aid Legal Help,LEGAL AID FUND,JOHN BLACK SOLICITORS LTD,2275786:158918336,"27,914.75",Legal Aid Legal Help
MOJ,LAA,27/10/21,Legal Aid Lower Crime,LEGAL AID FUND,HOWARDS & HENRY'S SOLICITORS LTD,2275787:158919652,"28,907.93",Legal Aid Lower Crime
MOJ,LAA,27/10/21,Legal Aid Higher Crime,LEGAL AID FUND,KINGSMAN SOLICITORS LTD,2275788:158884572,"107,574.07",Legal Aid Higher Crime
MOJ,LAA,27/10/21,Legal Aid Higher Crime,LEGAL AID FUND,KINGSMAN SOLICITORS LTD,2275788:158924491,"50,612.98",Legal Aid Higher Crime
MOJ,LAA,27/10/21,Legal Aid Lower Crime,LEGAL AID FUND,ALEXANDER BENNETT,2275794:158919802,"31,148.69",Legal Aid Lower Crime
MOJ,LAA,27/10/21,Legal Aid Lower Crime,LEGAL AID FUND,TANG BENTLEY & JACKSON LIMITED,2275820:158919630,"34,491.58",Legal Aid Lower Crime
MOJ,LAA,27/10/21,Legal Aid Higher Crime,LEGAL AID FUND,TYLER HOFFMAN LTD,2275827:158925599,"29,664.55",Legal Aid Higher Crime
MOJ,LAA,27/10/21,Legal Aid Lower Crime,LEGAL AID FUND,TUCKERS SOLICITORS LLP,2275841:158919602,"28,053.33",Legal Aid Lower Crime
MOJ,LAA,27/10/21,Legal Aid Lower Crime,LEGAL AID FUND,REEDS SOLICITORS LLP,2275849:158919603,"35,989.22",Legal Aid Lower Crime
MOJ,LAA,27/10/21,Legal Aid Lower Crime,LEGAL AID FUND,WATSON WOODHOUSE LTD,2275850:158919673,"28,405.79",Legal Aid Lower Crime
MOJ,LAA,27/10/21,Legal Aid Higher Crime,LEGAL AID FUND,MAYFAIR SOLICITORS,2275852:158925221,"89,975.11",Legal Aid Higher Crime
MOJ,LAA,27/10/21,Legal Aid Lower Crime,LEGAL AID FUND,TAYLOR ROSE MW SOLICITORS,2275856:158919678,"35,237.69",Legal Aid Lower Crime
MOJ,LAA,27/10/21,Legal Aid Lower Crime,LEGAL AID FUND,HINE SOLICITORS,2275860:158919670,"53,798.48",Legal Aid Lower Crime
MOJ,LAA,27/10/21,Legal Aid Lower Crime,LEGAL AID FUND,ALLEN HOOLE LTD,2275863:158919667,"27,802.51",Legal Aid Lower Crime
MOJ,LAA,27/10/21,Legal Aid Lower Crime,LEGAL AID FUND,TEESSIDE LAW LTD,2275890:158919532,"41,416.15",Legal Aid Lower Crime
MOJ,LAA,27/10/21,Legal Aid Lower Crime,LEGAL AID FUND,ALEXANDER BENNETT,2275893:158918746,"25,000.00",Legal Aid Lower Crime
MOJ,LAA,27/10/21,Legal Aid Lower Crime,LEGAL AID FUND,THE JOHNSON PARTNERSHIP,2275896:158919529,"28,585.83",Legal Aid Lower Crime
MOJ,LAA,27/10/21,Legal Aid Legal Help,LEGAL AID FUND,DUNCAN LEWIS SOLICITORS  LTD,2275899:158917567,"59,300.00",Legal Aid Legal Help
MOJ,LAA,27/10/21,Legal Aid Lower Crime,LEGAL AID FUND,HILL TWINE SOLICITORS,2275926:158919527,"28,161.82",Legal Aid Lower Crime
MOJ,LAA,27/10/21,Legal Aid Lower Crime,LEGAL AID FUND,JACOBS & TODD,2275996:158918742,"26,200.00",Legal Aid Lower Crime
MOJ,LAA,27/10/21,Legal Aid Legal Help,LEGAL AID FUND,DEIGHTON PIERCE GLYNN LTD,2276029:158918192,"27,409.27",Legal Aid Legal Help
MOJ,LAA,27/10/21,Legal Aid Civil Representation,LEGAL AID FUND,OWEN HUW THOMAS QC,2276056:3000006439300020,"44,161.20",Legal Aid Civil Representation
MOJ,LAA,27/10/21,Legal Aid Higher Crime,LEGAL AID FUND,NIGEL J POWER QC,2276181:158874301,"43,716.00",Legal Aid Higher Crime
MOJ,LAA,27/10/21,Legal Aid Higher Crime,LEGAL AID FUND,ANTHONY R BARRACLOUGH,2276229:158930410,"47,760.00",Legal Aid Higher Crime
MOJ,LAA,27/10/21,Legal Aid Civil Representation,LEGAL AID FUND,ANDREW R LOVERIDGE,2276233:3000005456160005,"26,362.80",Legal Aid Civil Representation
MOJ,LAA,27/10/21,Legal Aid Civil Representation,LEGAL AID FUND,RAZA HUSAIN QC,2276236:158896017,"74,338.65",Legal Aid Civil Representation
MOJ,LAA,27/10/21,Legal Aid Civil Representation,LEGAL AID FUND,NICHOLAS ARMSTRONG,2276247:158896019,"37,815.95",Legal Aid Civil Representation
MOJ,LAA,27/10/21,Legal Aid Civil Representation,LEGAL AID FUND,SAM KARIM,2276264:3000004679870029,"59,853.73",Legal Aid Civil Representation
MOJ,LAA,27/10/21,Legal Aid Higher Crime,LEGAL AID FUND,JOEL N BENNATHAN QC,2276395:158875019,"64,596.00",Legal Aid Higher Crime
MOJ,LAA,27/10/21,Legal Aid Legal Help,LEGAL AID FUND,LEVY & CO SOLICITORS LLP,2276448:158918264,"34,032.00",Legal Aid Legal Help
MOJ,LAA,27/10/21,Legal Aid Lower Crime,LEGAL AID FUND,LEVY & CO SOLICITORS LLP,2276448:158918874,"38,483.11",Legal Aid Lower Crime
MOJ,LAA,27/10/21,Legal Aid Legal Help,LEGAL AID FUND,LAWANA & CO,2276452:158917825,"45,300.44",Legal Aid Legal Help
MOJ,LAA,27/10/21,Legal Aid Lower Crime,LEGAL AID FUND,CHURCHERS SOLICITORS LLP,2276458:158919252,"78,791.08",Legal Aid Lower Crime
MOJ,LAA,27/10/21,Legal Aid Lower Crime,LEGAL AID FUND,HENNESSY & HAMMUDI,2276465:158918682,"60,700.00",Legal Aid Lower Crime
MOJ,LAA,27/10/21,Legal Aid Lower Crime,LEGAL AID FUND,ZMS LEGAL LTD TA ZMS SOLICITORS,2276483:158918818,"42,956.86",Legal Aid Lower Crime
MOJ,LAA,27/10/21,Legal Aid Legal Help,LEGAL AID FUND,GUILE NICHOLAS-INC DONALD GALBRAITH & CO,2276490:158917529,"90,000.00",Legal Aid Legal Help
MOJ,LAA,27/10/21,Legal Aid Lower Crime,LEGAL AID FUND,MORTON EAVES LTD,2276493:158918687,"28,700.00",Legal Aid Lower Crime
MOJ,LAA,27/10/21,Legal Aid Civil Representation,LEGAL AID FUND,BASTIAN LLOYD MORRIS SOLICITOR ADVOCATES,2276494:3000002330030021,"33,847.05",Legal Aid Civil Representation
MOJ,LAA,27/10/21,Legal Aid Civil Representation,LEGAL AID FUND,BASTIAN LLOYD MORRIS SOLICITOR ADVOCATES,2276494:3000005173320016,"33,822.86",Legal Aid Civil Representation
MOJ,LAA,27/10/21,Legal Aid Lower Crime,LEGAL AID FUND,COX BURLEY SOLICITORS,2276499:158919273,"25,090.38",Legal Aid Lower Crime
MOJ,LAA,27/10/21,Legal Aid Higher Crime,LEGAL AID FUND,MITCHELLS SOLICITORS LLP,2276503:158893124,"29,664.55",Legal Aid Higher Crime
MOJ,LAA,27/10/21,Legal Aid Legal Help,LEGAL AID FUND,DONOVAN NEWTON SOLICITORS,2276507:158917978,"70,753.20",Legal Aid Legal Help
MOJ,LAA,27/10/21,Legal Aid Higher Crime,LEGAL AID FUND,SVS SOLICITORS,2276513:158874428,"56,409.46",Legal Aid Higher Crime
MOJ,LAA,27/10/21,Legal Aid Legal Help,LEGAL AID FUND,WIMBLEDON SOLICITORS,2276516:158918055,"25,476.97",Legal Aid Legal Help
MOJ,LAA,27/10/21,Legal Aid Lower Crime,LEGAL AID FUND,VHS FLETCHERS,2276524:158918831,"29,000.48",Legal Aid Lower Crime
MOJ,LAA,27/10/21,Legal Aid Lower Crime,LEGAL AID FUND,KEANEY WHITEHEAD PARTNERSHIP,2276525:158919053,"31,937.46",Legal Aid Lower Crime
MOJ,LAA,27/10/21,Legal Aid Higher Crime,LEGAL AID FUND,ALTAF SOLICITORS LTD,2276528:158925727,"89,975.11",Legal Aid Higher Crime
MOJ,LAA,27/10/21,Legal Aid Lower Crime,LEGAL AID FUND,HUMPHRYS DAWSON,2276533:158918801,"26,048.93",Legal Aid Lower Crime
MOJ,LAA,27/10/21,Legal Aid Lower Crime,LEGAL AID FUND,CROWE HUMBLE WESENCRAFT,2276542:158919084,"31,986.92",Legal Aid Lower Crime
MOJ,LAA,27/10/21,Legal Aid Lower Crime,LEGAL AID FUND,CLARKE KIERNAN LLP,2276553:158919220,"29,526.01",Legal Aid Lower Crime
MOJ,LAA,27/10/21,Legal Aid Lower Crime,LEGAL AID FUND,NEEDHAM POULIER LTD,2276555:158919027,"28,813.81",Legal Aid Lower Crime
MOJ,LAA,27/10/21,Legal Aid Lower Crime,LEGAL AID FUND,CARLTON PLACE LAW,2276556:158918674,"28,000.00",Legal Aid Lower Crime
MOJ,LAA,27/10/21,Legal Aid Lower Crime,LEGAL AID FUND,ACA LAW LTD,2276559:158918974,"31,284.09",Legal Aid Lower Crime
MOJ,LAA,27/10/21,Legal Aid Higher Crime,LEGAL AID FUND,MELVILLE BARROW LTD,2276560:158901753,"29,664.55",Legal Aid Higher Crime
MOJ,LAA,27/10/21,Legal Aid Higher Crime,LEGAL AID FUND,COBLEYS SOLICITORS LTD,2276561:158924604,"81,507.12",Legal Aid Higher Crime
MOJ,LAA,27/10/21,Legal Aid Lower Crime,LEGAL AID FUND,DPP LAW LTD,2276563:158919043,"28,136.95",Legal Aid Lower Crime
MOJ,LAA,27/10/21,Legal Aid Higher Crime,LEGAL AID FUND,MORRISON SPOWART LTD,2276577:158874900,"93,934.14",Legal Aid Higher Crime
MOJ,LAA,27/10/21,Legal Aid Lower Crime,LEGAL AID FUND,BAKERS SOLICITORS.,2276578:158918530,"33,100.00",Legal Aid Lower Crime
MOJ,LAA,27/10/21,Legal Aid Lower Crime,LEGAL AID FUND,MICHAEL CARROLL & CO,2276590:158918583,"35,100.00",Legal Aid Lower Crime
MOJ,LAA,27/10/21,Legal Aid Legal Help,LEGAL AID FUND,PETER EDWARDS LAW LTD,2276595:158917522,"26,100.00",Legal Aid Legal Help
MOJ,LAA,27/10/21,Legal Aid Lower Crime,LEGAL AID FUND,COBAINS SOLICITORS,2276598:158918656,"26,500.00",Legal Aid Lower Crime
MOJ,LAA,27/10/21,Legal Aid Higher Crime,LEGAL AID FUND,PAUL CROWLEY & CO SOLICITORS LTD,2276604:158887941,"53,097.52",Legal Aid Higher Crime
MOJ,LAA,27/10/21,Legal Aid Legal Help,LEGAL AID FUND,DUNCAN LEWIS SOLICITORS  LTD,2276606:158915645,"97,000.00",Legal Aid Legal Help
MOJ,LAA,27/10/21,Legal Aid Legal Help,LEGAL AID FUND,DUNCAN LEWIS SOLICITORS  LTD,2276606:158915716,"96,000.00",Legal Aid Legal Help
MOJ,LAA,27/10/21,Legal Aid Legal Help,LEGAL AID FUND,DUNCAN LEWIS SOLICITORS  LTD,2276606:158915717,"75,400.00",Legal Aid Legal Help
MOJ,LAA,27/10/21,Legal Aid Lower Crime,LEGAL AID FUND,DUNCAN LEWIS SOLICITORS  LTD,2276606:158918569,"93,800.00",Legal Aid Lower Crime
MOJ,LAA,27/10/21,Legal Aid Legal Help,LEGAL AID FUND,DUNCAN LEWIS SOLICITORS  LTD,2276607:158915636,"95,000.00",Legal Aid Legal Help
MOJ,LAA,27/10/21,Legal Aid Legal Help,LEGAL AID FUND,DUNCAN LEWIS SOLICITORS  LTD,2276607:158915641,"94,000.00",Legal Aid Legal Help
MOJ,LAA,27/10/21,Legal Aid Legal Help,LEGAL AID FUND,DUNCAN LEWIS SOLICITORS  LTD,2276607:158915642,"93,000.00",Legal Aid Legal Help
MOJ,LAA,27/10/21,Legal Aid Legal Help,LEGAL AID FUND,DUNCAN LEWIS SOLICITORS  LTD,2276607:158915643,"92,000.00",Legal Aid Legal Help
MOJ,LAA,27/10/21,Legal Aid Legal Help,LEGAL AID FUND,DUNCAN LEWIS SOLICITORS  LTD,2276607:158915644,"26,000.00",Legal Aid Legal Help
MOJ,LAA,27/10/21,Legal Aid Legal Help,LEGAL AID FUND,CENTRAL ENGLAND LAW CENTRE LTD,2276613:158917614,"35,619.30",Legal Aid Legal Help
MOJ,LAA,27/10/21,Legal Aid Lower Crime,LEGAL AID FUND,USMANI KING LTD,2276616:158918863,"60,065.68",Legal Aid Lower Crime
MOJ,LAA,27/10/21,Legal Aid Legal Help,LEGAL AID FUND,TURPIN & MILLER LLP,2276617:158915802,"99,000.00",Legal Aid Legal Help
MOJ,LAA,27/10/21,Legal Aid Lower Crime,LEGAL AID FUND,HARRINGTONS LEGAL LLP,2276628:158918721,"27,000.00",Legal Aid Lower Crime
MOJ,LAA,27/10/21,Legal Aid Lower Crime,LEGAL AID FUND,ROBERTSON'S SOLICITORS,2276638:158918621,"30,300.00",Legal Aid Lower Crime
MOJ,LAA,27/10/21,Legal Aid Lower Crime,LEGAL AID FUND,BHATIA BEST LTD,2276648:158918526,"36,900.00",Legal Aid Lower Crime
MOJ,LAA,27/10/21,Legal Aid Civil Representation,LEGAL AID FUND,BHATIA BEST LTD,2276648:3000005091820026,"32,516.86",Legal Aid Civil Representation
MOJ,LAA,27/10/21,Legal Aid Lower Crime,LEGAL AID FUND,BHATIA BEST LTD,2276649:158918524,"28,200.00",Legal Aid Lower Crime
MOJ,LAA,27/10/21,Legal Aid Lower Crime,LEGAL AID FUND,BHATIA BEST LTD,2276650:158918523,"122,900.00",Legal Aid Lower Crime
MOJ,LAA,27/10/21,Legal Aid Civil Representation,LEGAL AID FUND,MORECROFTS LLP,2276657:3000004852280012,"25,895.77",Legal Aid Civil Representation
MOJ,LAA,27/10/21,Legal Aid Lower Crime,LEGAL AID FUND,ALLEN HOOLE LTD,2276663:158918689,"34,000.00",Legal Aid Lower Crime
MOJ,LAA,27/10/21,Legal Aid Civil Representation,LEGAL AID FUND,ELLIOT MATHER LLP,2276673:3000006608530008,"32,602.73",Legal Aid Civil Representation
MOJ,LAA,27/10/21,Legal Aid Higher Crime,LEGAL AID FUND,BURTON & CO LLP,2276675:158884374,"41,796.78",Legal Aid Higher Crime
MOJ,LAA,27/10/21,Legal Aid Higher Crime,LEGAL AID FUND,METCALFE COPEMAN & PETTEFAR,2276710:158883244,"36,423.53",Legal Aid Higher Crime
MOJ,LAA,27/10/21,Legal Aid Lower Crime,LEGAL AID FUND,METCALFE COPEMAN & PETTEFAR,2276710:158918548,"44,500.00",Legal Aid Lower Crime
MOJ,LAA,27/10/21,Legal Aid Legal Help,LEGAL AID FUND,HUNT & COOMBS LLP,2276716:158917705,"30,796.38",Legal Aid Legal Help
MOJ,LAA,27/10/21,Legal Aid Lower Crime,LEGAL AID FUND,ROLAND ROBINSONS AND FENTONS LLP,2276723:158919196,"31,884.04",Legal Aid Lower Crime
MOJ,LAA,27/10/21,Legal Aid Lower Crime,LEGAL AID FUND,JACKSON LEES GROUP LTD,2276726:158919855,"46,962.86",Legal Aid Lower Crime
MOJ,LAA,27/10/21,Legal Aid Lower Crime,LEGAL AID FUND,DE MAIDS SOLICITORS & ADVOCATES,2276736:158918520,"34,800.00",Legal Aid Lower Crime
MOJ,LAA,27/10/21,Legal Aid Civil Representation,LEGAL AID FUND,TRUEMANS SOLICITORS,2276738:3000005510580026,"26,140.96",Legal Aid Civil Representation
MOJ,LAA,27/10/21,Legal Aid Lower Crime,LEGAL AID FUND,PENFOLD & MCPHERSON LTD,2276751:158919262,"25,071.36",Legal Aid Lower Crime
MOJ,LAA,27/10/21,Legal Aid Higher Crime,LEGAL AID FUND,KRISTINA HARRISON SOLICITORS,2276788:158925467,"28,050.70",Legal Aid Higher Crime
MOJ,LAA,27/10/21,Legal Aid Civil Representation,LEGAL AID FUND,CLARKES LLP,2276794:3000006608500015,"33,704.70",Legal Aid Civil Representation
MOJ,LAA,27/10/21,Legal Aid Legal Help,LEGAL AID FUND,BURKE NIAZI  LTD,2276799:158917530,"60,000.00",Legal Aid Legal Help
MOJ,LAA,27/10/21,Legal Aid Civil Representation,LEGAL AID FUND,FAIRBROTHER & DARLOW,2276803:3000006170610017,"33,195.01",Legal Aid Civil Representation
MOJ,LAA,27/10/21,Legal Aid Lower Crime,LEGAL AID FUND,GOODALL BARNETT JAMES SOLICITORS,2276810:158932010,"26,500.00",Legal Aid Lower Crime
MOJ,LAA,27/10/21,Legal Aid Civil Representation,LEGAL AID FUND,ROOTES & ALLIOTT,2276824:3000005143180030,"33,212.73",Legal Aid Civil Representation
MOJ,LAA,27/10/21,Legal Aid Lower Crime,LEGAL AID FUND,EDWARD FAIL BRADSHAW & WATERSON,2276834:158919028,"26,888.20",Legal Aid Lower Crime
MOJ,LAA,27/10/21,Legal Aid Civil Representation,LEGAL AID FUND,PHILCOX GRAY & CO,2276838:3000006302070017,"25,507.63",Legal Aid Civil Representation
MOJ,LAA,27/10/21,Legal Aid Lower Crime,LEGAL AID FUND,DOBSONS,2276840:158918562,"46,000.00",Legal Aid Lower Crime
MOJ,LAA,27/10/21,Legal Aid Higher Crime,LEGAL AID FUND,TUCKERS SOLICITORS LLP,2276841:158883919,"64,138.37",Legal Aid Higher Crime
MOJ,LAA,27/10/21,Legal Aid Civil Representation,LEGAL AID FUND,THERESA C F LIM,2276855:3000009885510022,"29,342.02",Legal Aid Civil Representation
MOJ,LAA,27/10/21,Legal Aid Lower Crime,LEGAL AID FUND,HINDUJA GLOBAL SOLUTIONS UK LTD,2276901:158900264,"312,035.74",Legal Aid Lower Crime
MOJ,LAA,27/10/21,Legal Aid Legal Help,LEGAL AID FUND,STAR LEGAL LTD,2276908:158918480,"27,506.17",Legal Aid Legal Help
MOJ,LAA,27/10/21,Legal Aid Legal Help,LEGAL AID FUND,AJM SOLICITORS,2276955:158918453,"41,993.10",Legal Aid Legal Help
MOJ,LAA,27/10/21,Legal Aid Civil Representation,LEGAL AID FUND,BEU SOLICITORS,2276968:3000007001140001,"30,000.00",Legal Aid Civil Representation
MOJ,LAA,27/10/21,Legal Aid Legal Help,LEGAL AID FUND,BISON SOLICITORS LTD,2276969:158918359,"37,533.27",Legal Aid Legal Help
MOJ,LAA,27/10/21,Legal Aid Legal Help,LEGAL AID FUND,BISON SOLICITORS LTD,2276970:158918358,"59,622.77",Legal Aid Legal Help
MOJ,LAA,27/10/21,Legal Aid Legal Help,LEGAL AID FUND,FOUNTAIN SOLICITORS LTD,2276988:158918352,"39,271.38",Legal Aid Legal Help
MOJ,LAA,27/10/21,Legal Aid Legal Help,LEGAL AID FUND,CB LEGAL ADVISORY LTD T/A CB SOLICITORS,2276997:158918348,"30,684.70",Legal Aid Legal Help
MOJ,LAA,27/10/21,Legal Aid Lower Crime,LEGAL AID FUND,TONY HARDEN SOLICITORS LTD,2277048:158919726,"25,854.26",Legal Aid Lower Crime
MOJ,LAA,27/10/21,Legal Aid Lower Crime,LEGAL AID FUND,JERMAN SAMUELS & PEARSON LLP,2277052:158918749,"88,200.00",Legal Aid Lower Crime
MOJ,LAA,27/10/21,Legal Aid Lower Crime,LEGAL AID FUND,VIENNA KANG ADVOCATES LTD,2277075:158919707,"27,159.23",Legal Aid Lower Crime
MOJ,LAA,27/10/21,Legal Aid Lower Crime,LEGAL AID FUND,PURE LAW CRIMINAL DEFENCE,2277077:158932013,"40,584.48",Legal Aid Lower Crime
MOJ,LAA,27/10/21,Legal Aid Lower Crime,LEGAL AID FUND,J D SOLICITORS LTD,2277083:158919698,"49,978.06",Legal Aid Lower Crime
MOJ,LAA,27/10/21,Legal Aid Higher Crime,LEGAL AID FUND,BMS SOLICITORS,2277093:158924485,"27,573.30",Legal Aid Higher Crime
MOJ,LAA,27/10/21,Legal Aid Higher Crime,LEGAL AID FUND,ASHMANS SOLICITORS LTD,2277099:158883516,"27,066.25",Legal Aid Higher Crime
MOJ,LAA,27/10/21,Legal Aid Lower Crime,LEGAL AID FUND,REEDS SOLICITORS LLP,2277109:158919745,"93,300.25",Legal Aid Lower Crime
MOJ,LAA,27/10/21,Legal Aid Higher Crime,LEGAL AID FUND,REEDS SOLICITORS LLP,2277118:158893153,"74,325.30",Legal Aid Higher Crime
MOJ,LAA,27/10/21,Legal Aid Lower Crime,LEGAL AID FUND,REEDS SOLICITORS LLP,2277118:158919748,"43,560.36",Legal Aid Lower Crime
MOJ,LAA,27/10/21,Legal Aid Civil Representation,LEGAL AID FUND,FAMILY MEDIATION CENTRE STAFFORDSHIRE,2277151:158919887,"25,650.00",Legal Aid Civil Representation
MOJ,LAA,27/10/21,Legal Aid Civil Representation,LEGAL AID FUND,CARTWRIGHT KING LTD,2277155:3000004339190039,"42,625.03",Legal Aid Civil Representation
MOJ,LAA,27/10/21,Legal Aid Lower Crime,LEGAL AID FUND,BREYDONS SOLICITORS LTD,2277166:158919440,"33,065.98",Legal Aid Lower Crime
MOJ,LAA,27/10/21,Legal Aid Civil Representation,LEGAL AID FUND,FRANCESCA GARDNER,2277171:3000004679870028,"27,937.42",Legal Aid Civil Representation
MOJ,LAA,27/10/21,Legal Aid Legal Help,LEGAL AID FUND,APPLEMAN LEGAL,2277176:158918303,"54,235.63",Legal Aid Legal Help
MOJ,LAA,27/10/21,Legal Aid Legal Help,LEGAL AID FUND,ABBOTSTONE LAW LLP,2277180:158918299,"47,811.36",Legal Aid Legal Help
MOJ,LAA,27/10/21,Legal Aid Legal Help,LEGAL AID FUND,BISON SOLICITORS LTD,2277183:158918297,"98,800.33",Legal Aid Legal Help
MOJ,LAA,27/10/21,Legal Aid Lower Crime,LEGAL AID FUND,TUCKERS SOLICITORS LLP,2277202:158918744,"48,600.00",Legal Aid Lower Crime
MOJ,LAA,27/10/21,Legal Aid Lower Crime,LEGAL AID FUND,VHS FLETCHERS,2277212:158919541,"35,483.47",Legal Aid Lower Crime
MOJ,LAA,27/10/21,Legal Aid Civil Representation,LEGAL AID FUND,LUCY HENDRY QC,2277251:3000003530140028,"38,130.78",Legal Aid Civil Representation
MOJ,LAA,27/10/21,Legal Aid Civil Representation,LEGAL AID FUND,DEBORAH GOSLING,2277410:3000003537100027,"28,207.20",Legal Aid Civil Representation
MOJ,LAA,27/10/21,Legal Aid Civil Representation,LEGAL AID FUND,JAMES H H TILLYARD QC,2277503:3000006668170014,"29,192.40",Legal Aid Civil Representation
MOJ,LAA,27/10/21,Legal Aid Civil Representation,LEGAL AID FUND,PHILIPPA E JENKINS,2277505:3000007697710019,"28,252.80",Legal Aid Civil Representation
MOJ,LAA,27/10/21,Legal Aid Civil Representation,LEGAL AID FUND,ANDREW S E SHAW,2277509:3000004789530030,"54,172.80",Legal Aid Civil Representation
MOJ,LAA,27/10/21,Legal Aid Civil Representation,LEGAL AID FUND,NKUMBE EKANEY QC,2277522:3000002733610023,"48,216.06",Legal Aid Civil Representation
MOJ,LAA,27/10/21,Legal Aid Civil Representation,LEGAL AID FUND,VICTORIA BUTLER-COLE QC,2277526:3000006477840012,"26,532.00",Legal Aid Civil Representation
MOJ,LAA,27/10/21,Legal Aid Civil Representation,LEGAL AID FUND,MARCIA HYDE,2277551:3000004339190036,"47,040.31",Legal Aid Civil Representation
MOJ,LAA,27/10/21,Legal Aid Higher Crime,LEGAL AID FUND,ALI N BAJWA QC,2277621:158902403,"64,596.00",Legal Aid Higher Crime
MOJ,LAA,27/10/21,Legal Aid Higher Crime,LEGAL AID FUND,TANVEER A QURESHI,2277630:158874661,"39,048.00",Legal Aid Higher Crime
MOJ,LAA,27/10/21,Legal Aid Lower Crime,LEGAL AID FUND,THE JOHNSON PARTNERSHIP,2277696:158919382,"40,687.52",Legal Aid Lower Crime
MOJ,LAA,27/10/21,Legal Aid Lower Crime,LEGAL AID FUND,SANSBURY DOUGLAS,2277698:158918734,"39,000.00",Legal Aid Lower Crime
MOJ,LAA,27/10/21,Legal Aid Lower Crime,LEGAL AID FUND,SANSBURY DOUGLAS,2277698:158932154,"25,000.00",Legal Aid Lower Crime
MOJ,LAA,27/10/21,Legal Aid Lower Crime,LEGAL AID FUND,PEPPERELLS SOLICITORS,2277699:158919398,"27,820.06",Legal Aid Lower Crime
MOJ,LAA,27/10/21,Legal Aid Civil Representation,LEGAL AID FUND,PEPPERELLS SOLICITORS,2277699:3000006314900017,"25,364.20",Legal Aid Civil Representation
MOJ,LAA,27/10/21,Legal Aid Higher Crime,LEGAL AID FUND,DDE LAW LTD,2277702:158932516,"27,197.61",Legal Aid Higher Crime
MOJ,LAA,27/10/21,Legal Aid Lower Crime,LEGAL AID FUND,WESSEX SOLICITORS CHAMBERS,2277713:158918732,"58,500.00",Legal Aid Lower Crime
MOJ,LAA,27/10/21,Legal Aid Lower Crime,LEGAL AID FUND,GEOFF WHITE & CO,2277728:158919232,"25,564.95",Legal Aid Lower Crime
MOJ,LAA,27/10/21,Legal Aid Lower Crime,LEGAL AID FUND,CRIMINAL DEFENCE MILTON KEYNES LTD,2277732:158918675,"40,900.00",Legal Aid Lower Crime
MOJ,LAA,27/10/21,Legal Aid Lower Crime,LEGAL AID FUND,OSLERS SOLICITORS,2277739:158918891,"51,103.07",Legal Aid Lower Crime
MOJ,LAA,27/10/21,Legal Aid Lower Crime,LEGAL AID FUND,WELLS BURCOMBE LLP,2277745:158918857,"32,834.58",Legal Aid Lower Crime
MOJ,LAA,27/10/21,Legal Aid Lower Crime,LEGAL AID FUND,TUCKERS SOLICITORS LLP,2277746:158919011,"27,552.54",Legal Aid Lower Crime
MOJ,LAA,27/10/21,Legal Aid Lower Crime,LEGAL AID FUND,SUSSEX DEFENCE SOLICITORS,2277750:158918738,"32,600.00",Legal Aid Lower Crime
MOJ,LAA,27/10/21,Legal Aid Lower Crime,LEGAL AID FUND,ALLEN HOOLE LTD,2277753:158918694,"51,300.00",Legal Aid Lower Crime
MOJ,LAA,27/10/21,Legal Aid Civil Representation,LEGAL AID FUND,GWB HARTHILLS LLP,2277754:3000005429110025,"50,984.19",Legal Aid Civil Representation
MOJ,LAA,27/10/21,Legal Aid Higher Crime,LEGAL AID FUND,LLOYDS PR SOLICITORS,2277757:158884068,"29,664.55",Legal Aid Higher Crime
MOJ,LAA,27/10/21,Legal Aid Lower Crime,LEGAL AID FUND,LLOYDS PR SOLICITORS,2277757:158918858,"30,665.19",Legal Aid Lower Crime
MOJ,LAA,27/10/21,Legal Aid Lower Crime,LEGAL AID FUND,TAYLOR GOODCHILD LTD,2277762:158919419,"25,859.16",Legal Aid Lower Crime
MOJ,LAA,27/10/21,Legal Aid Lower Crime,LEGAL AID FUND,GOLDKORNS,2277767:158919386,"26,636.61",Legal Aid Lower Crime
MOJ,LAA,27/10/21,Legal Aid Higher Crime,LEGAL AID FUND,L P EVANS SOLICITORS,2277771:158883083,"39,215.19",Legal Aid Higher Crime
MOJ,LAA,27/10/21,Legal Aid Higher Crime,LEGAL AID FUND,L P EVANS SOLICITORS,2277771:158925377,"32,663.81",Legal Aid Higher Crime
MOJ,LAA,27/10/21,Legal Aid Lower Crime,LEGAL AID FUND,G T STEWART LTD,2277775:158919430,"71,666.87",Legal Aid Lower Crime
MOJ,LAA,27/10/21,Legal Aid Lower Crime,LEGAL AID FUND,G T STEWART LTD,2277778:158919428,"28,281.73",Legal Aid Lower Crime
MOJ,LAA,27/10/21,Legal Aid Lower Crime,LEGAL AID FUND,JOHN ROBINSON & CO,2277780:158918633,"30,100.00",Legal Aid Lower Crime
MOJ,LAA,27/10/21,Legal Aid Lower Crime,LEGAL AID FUND,JOHN DELANEY & CO SOLICITORS,2277783:158918631,"33,000.00",Legal Aid Lower Crime
MOJ,LAA,27/10/21,Legal Aid Higher Crime,LEGAL AID FUND,A2 SOLICITORS,2277787:158925001,"25,970.88",Legal Aid Higher Crime
MOJ,LAA,27/10/21,Legal Aid Legal Help,LEGAL AID FUND,CK SOLICITORS,2277792:158917850,"29,515.95",Legal Aid Legal Help
MOJ,LAA,27/10/21,Legal Aid Lower Crime,LEGAL AID FUND,VYMAN SOLICITORS LTD,2277796:158919218,"31,898.74",Legal Aid Lower Crime
MOJ,LAA,27/10/21,Legal Aid Higher Crime,LEGAL AID FUND,LLOYDS PR SOLICITORS,2277798:158874820,"60,310.56",Legal Aid Higher Crime
MOJ,LAA,27/10/21,Legal Aid Lower Crime,LEGAL AID FUND,LLOYDS PR SOLICITORS,2277798:158918853,"42,568.25",Legal Aid Lower Crime
MOJ,LAA,27/10/21,Legal Aid Legal Help,LEGAL AID FUND,CARTWRIGHT KING LTD,2277807:158918002,"64,480.36",Legal Aid Legal Help
MOJ,LAA,27/10/21,Legal Aid Legal Help,LEGAL AID FUND,OXFORD LAW GROUP LTD,2277808:158917563,"26,100.00",Legal Aid Legal Help
MOJ,LAA,27/10/21,Legal Aid Lower Crime,LEGAL AID FUND,STEVEN YOUNG & CO INC ROWBIS,2277819:158919301,"40,684.95",Legal Aid Lower Crime
MOJ,LAA,27/10/21,Legal Aid Lower Crime,LEGAL AID FUND,YOUNG & CO SOLICITORS T/A SWAIN & CO,2277820:158919244,"93,294.80",Legal Aid Lower Crime
MOJ,LAA,27/10/21,Legal Aid Lower Crime,LEGAL AID FUND,IRVINE THANVI NATAS SOLICITORS,2277822:158918921,"60,821.17",Legal Aid Lower Crime
MOJ,LAA,27/10/21,Legal Aid Lower Crime,LEGAL AID FUND,HERMANS,2277826:158919175,"34,012.43",Legal Aid Lower Crime
MOJ,LAA,27/10/21,Legal Aid Lower Crime,LEGAL AID FUND,BJ & CO SOLICITORS LTD,2277844:158918592,"47,600.00",Legal Aid Lower Crime
MOJ,LAA,27/10/21,Legal Aid Lower Crime,LEGAL AID FUND,BOND JOSEPH,2277849:158919229,"42,100.91",Legal Aid Lower Crime
MOJ,LAA,27/10/21,Legal Aid Lower Crime,LEGAL AID FUND,SHEPPARDS SOLICITORS LTD,2277851:158918697,"32,300.00",Legal Aid Lower Crime
MOJ,LAA,27/10/21,Legal Aid Legal Help,LEGAL AID FUND,THALIWAL & VEJA SOLICITORS,2277857:158917977,"25,469.30",Legal Aid Legal Help
MOJ,LAA,27/10/21,Legal Aid Lower Crime,LEGAL AID FUND,PETHERBRIDGE BASSRA SOLICITORS LTD,2277864:158919120,"40,571.94",Legal Aid Lower Crime
MOJ,LAA,27/10/21,Legal Aid Lower Crime,LEGAL AID FUND,ABR SOLICITORS,2277866:158919136,"60,635.94",Legal Aid Lower Crime
MOJ,LAA,27/10/21,Legal Aid Higher Crime,LEGAL AID FUND,ABR SOLICITORS,2277866:158926124,"34,830.65",Legal Aid Higher Crime
MOJ,LAA,27/10/21,Legal Aid Lower Crime,LEGAL AID FUND,REEDS SOLICITORS LLP,2277874:158919265,"60,190.44",Legal Aid Lower Crime
MOJ,LAA,27/10/21,Legal Aid Lower Crime,LEGAL AID FUND,POOLE ALCOCK LLP,2277882:158919171,"28,931.95",Legal Aid Lower Crime
MOJ,LAA,27/10/21,Legal Aid Civil Representation,LEGAL AID FUND,HEPBURN DELANEY,2277887:3000006442230015,"26,560.27",Legal Aid Civil Representation
MOJ,LAA,27/10/21,Legal Aid Lower Crime,LEGAL AID FUND,VHS FLETCHERS,2277917:158918829,"54,592.02",Legal Aid Lower Crime
MOJ,LAA,27/10/21,Legal Aid Lower Crime,LEGAL AID FUND,DODDS SOLICITORS LLP,2277918:158918816,"26,868.66",Legal Aid Lower Crime
MOJ,LAA,27/10/21,Legal Aid Civil Representation,LEGAL AID FUND,DODDS SOLICITORS LLP,2277918:3000004809500040,"33,177.60",Legal Aid Civil Representation
MOJ,LAA,27/10/21,Legal Aid Civil Representation,LEGAL AID FUND,DODDS SOLICITORS LLP,2277918:3000006529140012,"32,944.32",Legal Aid Civil Representation
MOJ,LAA,27/10/21,Legal Aid Civil Representation,LEGAL AID FUND,WOLFERSTANS LLP,2277926:3000005627270022,"36,878.76",Legal Aid Civil Representation
MOJ,LAA,27/10/21,Legal Aid Civil Representation,LEGAL AID FUND,SILLS & BETTERIDGE LLP,2277932:3000006600490019,"26,890.94",Legal Aid Civil Representation
MOJ,LAA,27/10/21,Legal Aid Civil Representation,LEGAL AID FUND,BATES & MOUNTAIN,2277933:3000006295310011,"38,272.06",Legal Aid Civil Representation
MOJ,LAA,27/10/21,Legal Aid Lower Crime,LEGAL AID FUND,THE JOHNSON PARTNERSHIP,2277936:158918827,"40,491.70",Legal Aid Lower Crime
MOJ,LAA,27/10/21,Legal Aid Lower Crime,LEGAL AID FUND,THE JOHNSON PARTNERSHIP,2277937:158918826,"43,245.42",Legal Aid Lower Crime
MOJ,LAA,27/10/21,Legal Aid Higher Crime,LEGAL AID FUND,THE JOHNSON PARTNERSHIP,2277938:158892972,"67,726.70",Legal Aid Higher Crime
MOJ,LAA,27/10/21,Legal Aid Lower Crime,LEGAL AID FUND,THE JOHNSON PARTNERSHIP,2277938:158918823,"156,539.31",Legal Aid Lower Crime
MOJ,LAA,27/10/21,Legal Aid Higher Crime,LEGAL AID FUND,MCNEIL & CO SOLICITORS,2277942:158873722,"34,830.65",Legal Aid Higher Crime
MOJ,LAA,27/10/21,Legal Aid Lower Crime,LEGAL AID FUND,CARTER OSBORNE LTD,2277948:158918825,"125,701.73",Legal Aid Lower Crime
MOJ,LAA,27/10/21,Legal Aid Lower Crime,LEGAL AID FUND,RMNJ SOLICITORS,2277954:158919038,"85,735.98",Legal Aid Lower Crime
MOJ,LAA,27/10/21,Legal Aid Legal Help,LEGAL AID FUND,GREATER MANCHESTER IMMIGRATION UNIT,2277962:158918067,"30,646.98",Legal Aid Legal Help
MOJ,LAA,27/10/21,Legal Aid Higher Crime,LEGAL AID FUND,MURRAYS PARTNERSHIP SOLICITORS,2277972:158883518,"28,145.20",Legal Aid Higher Crime
MOJ,LAA,27/10/21,Legal Aid Lower Crime,LEGAL AID FUND,FARLEYS SOLICITORS LLP,2277992:158918642,"26,900.00",Legal Aid Lower Crime
MOJ,LAA,27/10/21,Legal Aid Lower Crime,LEGAL AID FUND,RUSSELL & RUSSELL SOLICITORS LLP,2277997:158919379,"25,194.35",Legal Aid Lower Crime
MOJ,LAA,27/10/21,Legal Aid Legal Help,LEGAL AID FUND,THOMPSON & CO SOLICITORS LTD,2278005:158917526,"25,300.00",Legal Aid Legal Help
MOJ,LAA,27/10/21,Legal Aid Lower Crime,LEGAL AID FUND,STEVENS SOLICITORS,2278013:158918706,"39,300.00",Legal Aid Lower Crime
MOJ,LAA,27/10/21,Legal Aid Lower Crime,LEGAL AID FUND,STEVENS SOLICITORS,2278014:158918705,"37,600.00",Legal Aid Lower Crime
MOJ,LAA,27/10/21,Legal Aid Civil Representation,LEGAL AID FUND,PLUCK ANDREW SOLICITORS LTD,2278024:3000006460860009,"27,304.49",Legal Aid Civil Representation
MOJ,LAA,27/10/21,Legal Aid Civil Representation,LEGAL AID FUND,BROMLEYS SOLICITORS LLP,2278033:3000007861150012,"27,012.93",Legal Aid Civil Representation
MOJ,LAA,27/10/21,Legal Aid Lower Crime,LEGAL AID FUND,ROBERT LIZAR,2278039:158919213,"41,463.57",Legal Aid Lower Crime
MOJ,LAA,27/10/21,Legal Aid Higher Crime,LEGAL AID FUND,STEPHENSONS SOLICITORS LLP,2278042:158924405,"89,975.11",Legal Aid Higher Crime
MOJ,LAA,27/10/21,Legal Aid Higher Crime,LEGAL AID FUND,STEPHENSONS SOLICITORS LLP,2278043:158883428,"39,375.06",Legal Aid Higher Crime
MOJ,LAA,27/10/21,Legal Aid Lower Crime,LEGAL AID FUND,LANSBURY WORTHINGTON LTD,2278047:158918550,"47,500.00",Legal Aid Lower Crime
MOJ,LAA,27/10/21,Legal Aid Legal Help,LEGAL AID FUND,T V EDWARDS LLP,2278048:158917830,"39,336.09",Legal Aid Legal Help
MOJ,LAA,27/10/21,Legal Aid Lower Crime,LEGAL AID FUND,T V EDWARDS LLP,2278048:158918979,"32,446.59",Legal Aid Lower Crime
MOJ,LAA,27/10/21,Legal Aid Lower Crime,LEGAL AID FUND,DEVAS KEOGH JAMES SOLICITORS LTD,2278049:158918900,"27,645.69",Legal Aid Lower Crime
MOJ,LAA,27/10/21,Legal Aid Lower Crime,LEGAL AID FUND,HARRIS CUFFARO & NICHOLS,2278051:158918544,"60,100.00",Legal Aid Lower Crime
MOJ,LAA,27/10/21,Legal Aid Lower Crime,LEGAL AID FUND,ROACH PITTIS SOLICITORS LTD,2278070:158918676,"25,000.00",Legal Aid Lower Crime
MOJ,LAA,27/10/21,Legal Aid Lower Crime,LEGAL AID FUND,FREEMANS LAW LLP,2278073:158918575,"26,300.00",Legal Aid Lower Crime
MOJ,LAA,27/10/21,Legal Aid Higher Crime,LEGAL AID FUND,STOKOE PARTNERSHIP,2278079:158883949,"49,226.17",Legal Aid Higher Crime
MOJ,LAA,27/10/21,Legal Aid Civil Representation,LEGAL AID FUND,BG LAWYERS LLP,2278087:3000006580080009,"32,947.74",Legal Aid Civil Representation
MOJ,LAA,27/10/21,Legal Aid Civil Representation,LEGAL AID FUND,DAWSON CORNWELL,2278092:3000004382730059,"53,884.19",Legal Aid Civil Representation
MOJ,LAA,27/10/21,Legal Aid Civil Representation,LEGAL AID FUND,DAWSON CORNWELL,2278092:3000004789530029,"66,314.03",Legal Aid Civil Representation
MOJ,LAA,27/10/21,Legal Aid Higher Crime,LEGAL AID FUND,BLACKFORDS LLP,2278094:158889305,"62,373.51",Legal Aid Higher Crime
MOJ,LAA,27/10/21,Legal Aid Lower Crime,LEGAL AID FUND,BLACKFORDS LLP,2278094:158918941,"32,562.60",Legal Aid Lower Crime
MOJ,LAA,27/10/21,Legal Aid Higher Crime,LEGAL AID FUND,BLACKFORDS LLP,2278094:158924605,"105,857.75",Legal Aid Higher Crime
MOJ,LAA,27/10/21,Legal Aid Civil Representation,LEGAL AID FUND,ATKINS HOPE SOLICITORS LTD,2278100:3000005893890043,"36,521.70",Legal Aid Civil Representation
MOJ,LAA,27/10/21,Legal Aid Civil Representation,LEGAL AID FUND,ATKINS HOPE SOLICITORS LTD,2278100:3000006424810034,"31,713.29",Legal Aid Civil Representation
MOJ,LAA,27/10/21,Legal Aid Lower Crime,LEGAL AID FUND,THOMAS BOYD WHYTE SOLICITORS,2278101:158918953,"37,345.58",Legal Aid Lower Crime
MOJ,LAA,27/10/21,Legal Aid Lower Crime,LEGAL AID FUND,GAMMON PIERCY & GAIGER LLP,2278104:158919248,"55,787.28",Legal Aid Lower Crime
MOJ,LAA,27/10/21,Legal Aid Higher Crime,LEGAL AID FUND,IMRAN KHAN & PARTNERS,2278120:158925201,"42,619.67",Legal Aid Higher Crime
MOJ,LAA,27/10/21,Legal Aid Lower Crime,LEGAL AID FUND,SONN MACMILLAN WALKER LTD,2278136:158918551,"55,200.00",Legal Aid Lower Crime
MOJ,LAA,27/10/21,Legal Aid Lower Crime,LEGAL AID FUND,NELSON GUEST & PARTNERS,2278138:158918950,"28,867.45",Legal Aid Lower Crime
MOJ,LAA,27/10/21,Legal Aid Lower Crime,LEGAL AID FUND,MARTYN HEWETT,2278141:158918670,"49,200.00",Legal Aid Lower Crime
MOJ,LAA,27/10/21,Legal Aid Civil Representation,LEGAL AID FUND,EDWARDS DUTHIE SHAMASH SOLICITORS,2278143:3000004846140016,"25,005.28",Legal Aid Civil Representation
MOJ,LAA,27/10/21,Legal Aid Lower Crime,LEGAL AID FUND,ASGHAR & CO SOLICITORS LTD,2278152:158919017,"36,708.70",Legal Aid Lower Crime
MOJ,LAA,29/10/21,EXP - PURCHASE OF GOODS/SERVICES - OTHER PROFESSIONAL SERVICES - LEGAL SERVICES - THIRD PARTY LEGAL COSTS,Case Mgmt Strategy & Planning,MARSTON HOLDINGS LTD,40181,"74,400.63",Professional services
